Workbook

Sheet 2W
L1: Low = very urban | P1: alpha | S1: beta | V1: T
C2: a | D2: 0.1 | E2: a | F2: 0.3 | G2: a | H2: 0.5 | P2: =H2 -> 0.5 | Q2: =F2 -> 0.3 | R2: =D2 -> 0.1 | S2: =H3 -> 3.1 | T2: =F3 -> 3.1 | U2: =D3 -> 3.1 | V2: =H4 -> 8 | W2: =F4 -> 10 | X2: =D4 -> 14
C3: b | D3: 3.1 | E3: b | F3: 3.1 | G3: b | H3: 3.1
C4: T | D4: 14 | E4: T | F4: 10 | G4: T | H4: 8
D5: High | F5: Medium | H5: Low
B6: 0 | D6: 1 | F6: 1 | H6: 1
B7: 1 | C7: =(B7+$D$2)/$D$4 -> 0.07857142857 | D7: =EXP(-(C7^$D$3)) -> 0.9996239559 | E7: =(B7+$F$2)/$F$4 -> 0.13 | F7: =EXP(-(E7^$F$3)) -> 0.9982100726 | G7: =(B7+$H$2)/($H$4) -> 0.1875 | H7: =EXP(-(G7^$H$3)) -> 0.9944397573
B8: 2 | C8: =(B8+$D$2)/$D$4 -> 0.15 | D8: =EXP(-(C8^$D$3)) -> 0.9972121024 | E8: 0.23 | F8: 0.9895509366 | G8: =(B8+$H$2)/($H$4) -> 0.3125 | H8: =EXP(-(G8^$H$3)) -> 0.9731991065
B9: 3 | C9: 0.2214285714 | D9: 0.9907060927 | E9: 0.33 | F9: 0.968346099 | G9: 0.4375 | H9: 0.9258009508
B10: 4 | C10: 0.2928571429 | D10: 0.9780306 | E10: 0.43 | F10: 0.9295337107 | G10: 0.5625 | H10: 0.845330762
B11: 5 | C11: 0.3642857143 | D11: 0.9572421271 | E11: 0.53 | F11: 0.8696026357 | G11: 0.6875 | H11: 0.7312493644
B12: 6 | C12: 0.4357142857 | D12: 0.9267006424 | E12: 0.63 | F12: 0.787606425 | G12: 0.8125 | H12: 0.5913457028
B13: 7 | C13: 0.5071428571 | D13: 0.8852616668 | E13: 0.73 | F13: 0.6859401783 | G13: 0.9375 | H13: 0.4410160885
B14: 8 | C14: 0.5785714286 | D14: 0.8324676935 | E14: 0.83 | F14: 0.5705060176 | G14: 1.0625 | H14: 0.299166
B15: 9 | C15: 0.65 | D15: 0.768706674 | E15: 0.93 | F15: 0.4499850787 | G15: 1.1875 | H15: 0.1820294839
B16: 10 | C16: 0.7214285714 | D16: 0.6952998618 | E16: 1.03 | F16: 0.3342180186 | G16: 1.3125 | H16: 0.097948468
B17: 11 | C17: 0.7928571429 | D17: 0.6144840089 | E17: 1.13 | F17: 0.2320877027 | G17: 1.4375 | H17: 0.04594829648
B18: 12 | C18: 0.8642857143 | D18: 0.5292657738 | E18: 1.23 | F18: 0.1495998696 | G18: 1.5625 | H18: 0.01852195781
B19: 13 | C19: 0.9357142857 | D19: 0.4431488729 | E19: 1.33 | F19: 0.08885983154 | G19: 1.6875 | H19: 0.006323027015
B20: 14 | C20: 1.007142857 | D20: 0.3597631562 | E20: 1.43 | F20: 0.0482822444 | G20: 1.8125 | H20: 0.001801390683
B21: 15 | C21: 1.078571429 | D21: 0.2824521538 | E21: 1.53 | F21: 0.02382130323 | G21: 1.9375 | H21: 0.0004219996467
B22: 16 | C22: 1.15 | D22: 0.2138928098 | E22: 1.63 | F22: 0.01059267202 | G22: 2.0625 | H22: 8.008839979e-05
B23: 17 | C23: 1.221428571 | D23: 0.1558206156 | E23: 1.73 | F23: 0.004213588071 | G23: 2.1875 | H23: 1.213027468e-05
B24: 18 | C24: 1.292857143 | D24: 0.1089126387 | E24: 1.83 | F24: 0.001488091768 | G24: 2.3125 | H24: 1.444327436e-06 | J24: 1 | K24: 2 | L24: 3 | M24: 4 | N24: 5 | O24: 6 | P24: 7 | Q24: 8 | R24: 9 | S24: 10 | T24: 11 | U24: 12 | V24: 13 | W24: 14 | X24: 15 | Y24: 16 | Z24: 17 | AA24: 18 | AB24: 19 | AC24: 20 | AD24: 21 | AE24: 22 | AF24: 23
B25: 19 | C25: 1.364285714 | D25: 0.07284449059 | E25: 1.93 | F25: 0.0004630671554 | G25: 2.4375 | H25: 1.331581157e-07 | I25: HIGH | J25: 1 | K25: 0.9996239559 | L25: 0.9972121024 | M25: 0.9907060927 | N25: 0.9780306 | O25: 0.9572421271 | P25: 0.9267006424 | Q25: 0.8852616668 | R25: 0.8324676935 | S25: 0.768706674 | T25: 0.6952998618 | U25: 0.6144840089 | V25: 0.5292657738 | W25: 0.4431488729 | X25: 0.3597631562 | Y25: 0.2824521538 | Z25: 0.2138928098 | AA25: 0.1558206156 | AB25: 0.1089126387 | AC25: 0.07284449059 | AD25: 0.0464958517 | AE25: 0.02824610998 | AF25: 0.01628741079
B26: 20 | C26: 1.435714286 | D26: 0.0464958517 | E26: 2.03 | F26: 0.0001260034212 | G26: 2.5625 | H26: 9.361679891e-09 | I26: MED | J26: 1 | K26: 0.9982100726 | L26: 0.9895509366 | M26: 0.968346099 | N26: 0.9295337107 | O26: 0.8696026357 | P26: 0.787606425 | Q26: 0.6859401783 | R26: 0.5705060176 | S26: 0.4499850787 | T26: 0.3342180186 | U26: 0.2320877027 | V26: 0.1495998696 | W26: 0.08885983154 | X26: 0.0482822444 | Y26: 0.02382130323 | Z26: 0.01059267202 | AA26: 0.004213588071 | AB26: 0.001488091768 | AC26: 0.0004630671554 | AD26: 0.0001260034212 | AE26: 2.975192272e-05 | AF26: 6.049171125e-06
B27: 21 | C27: 1.507142857 | D27: 0.02824610998 | E27: 2.13 | F27: 2.975192272e-05 | G27: 2.6875 | H27: 4.942733934e-10 | I27: LOW | J27: 1 | K27: 0.9944397573 | L27: 0.9731991065 | M27: 0.9258009508 | N27: 0.845330762 | O27: 0.7312493644 | P27: 0.5913457028 | Q27: 0.4410160885 | R27: 0.299166 | S27: 0.1820294839 | T27: 0.097948468 | U27: 0.04594829648 | V27: 0.01852195781 | W27: 0.006323027015 | X27: 0.001801390683 | Y27: 0.0004219996467 | Z27: 8.008839979e-05 | AA27: 1.213027468e-05 | AB27: 1.444327436e-06 | AC27: 1.331581157e-07 | AD27: 9.361679891e-09 | AE27: 4.942733934e-10 | AF27: 1.92982771e-11
B28: 22 | C28: 1.578571429 | D28: 0.01628741079 | E28: 2.23 | F28: 6.049171125e-06 | G28: 2.8125 | H28: 1.92982771e-11
B29: 23 | C29: 1.65 | D29: 0.008890185948 | E29: 2.33 | F29: 1.050903577e-06 | G29: 2.9375 | H29: 5.486394759e-13
B30: 24 | C30: 1.721428571 | D30: 0.00458085013 | E30: 2.43 | F30: 1.547885926e-07 | G30: 3.0625 | H30: 1.118206918e-14
B31: 25 | C31: 1.792857143 | D31: 0.0022221003 | E31: 2.53 | F31: 1.917928862e-08 | G31: 3.1875 | H31: 1.608586788e-16
B32: 26 | C32: 1.864285714 | D32: 0.001011962673 | E32: 2.63 | F32: 1.983525956e-09 | G32: 3.3125 | H32: 1.60785497e-18
B33: 27 | C33: 1.935714286 | D33: 0.0004314641586 | E33: 2.73 | F33: 1.69877564e-10 | G33: 3.4375 | H33: 1.09924726e-20
B34: 28 | C34: 2.007142857 | D34: 0.0001717496517 | E34: 2.83 | F34: 1.195349124e-11 | G34: 3.5625 | H34: 5.059764449e-23
B35: 29 | C35: 2.078571429 | D35: 6.36509596e-05 | E35: 2.93 | F35: 6.855977431e-13 | G35: 3.6875 | H35: 1.543358571e-25
B36: 30 | C36: 2.15 | D36: 2.190053446e-05 | E36: 3.03 | F36: 3.179822833e-14 | G36: 3.8125 | H36: 3.070407676e-28
B37: 31 | C37: 2.221428571 | D37: 6.976276151e-06 | E37: 3.13 | F37: 1.183114131e-15 | G37: 3.9375 | H37: 3.920897422e-31
B38: 32 | C38: 2.292857143 | D38: 2.051569644e-06 | E38: 3.23 | F38: 3.503162664e-17 | G38: 4.0625 | H38: 3.162859808e-34
B39: 33 | C39: 2.364285714 | D39: 5.554091448e-07 | E39: 3.33 | F39: 8.188654357e-19 | G39: 4.1875 | H39: 1.585996043e-37
B40: 34 | C40: 2.435714286 | D40: 1.380290891e-07 | E40: 3.43 | F40: 1.498929308e-20 | G40: 4.3125 | H40: 4.864666957e-41
B41: 35 | C41: 2.507142857 | D41: 3.139944647e-08 | E41: 3.53 | F41: 2.131343276e-22 | G41: 4.4375 | H41: 8.980762616e-45

Sheet 3W
L1: Low = very urban | P1: alpha | S1: beta | V1: T
C2: a | D2: 0 | E2: a | F2: 0 | G2: a | H2: -1 | P2: =H2 -> -1 | Q2: =F2 -> 0 | R2: =D2 -> 0 | S2: =H3 -> 2 | T2: =F3 -> 2 | U2: =D3 -> 2 | V2: =H4 -> 8 | W2: =F4 -> 12 | X2: =D4 -> 15
C3: b | D3: 2 | E3: b | F3: 2 | G3: b | H3: 2
C4: T | D4: 15 | E4: T | F4: 12 | G4: T | H4: 8
D5: High | F5: Medium | H5: Low
B6: 0 | D6: 1 | F6: 1 | H6: 1
B7: 1 | C7: =(B7+$D$2)/$D$4 -> 0.06666666667 | D7: =EXP(-(C7^$D$3)) -> 0.9955654175 | E7: =(B7+$F$2)/$F$4 -> 0.08333333333 | F7: =EXP(-(E7^$F$3)) -> 0.9930796125 | G7: =(B7+$H$2)/($H$4) -> 0 | H7: =EXP(-(G7^$H$3)) -> 1
B8: 2 | C8: =(B8+$D$2)/$D$4 -> 0.1333333333 | D8: =EXP(-(C8^$D$3)) -> 0.9823793146 | E8: 0.1666666667 | F8: 0.9726044771 | G8: =(B8+$H$2)/($H$4) -> 0.125 | H8: =EXP(-(G8^$H$3)) -> 0.984496437
B9: 3 | C9: 0.2 | D9: 0.9607894392 | E9: 0.25 | F9: 0.9394130628 | G9: 0.25 | H9: 0.9394130628
B10: 4 | C10: 0.2666666667 | D10: 0.9313584021 | E10: 0.3333333333 | F10: 0.8948393168 | G10: 0.375 | H10: 0.8688150563
B11: 5 | C11: 0.3333333333 | D11: 0.8948393168 | E11: 0.4166666667 | F11: 0.8406237433 | G11: 0.5 | H11: 0.7788007831
B12: 6 | C12: 0.4 | D12: 0.852143789 | E12: 0.5 | F12: 0.7788007831 | G12: 0.625 | H12: 0.6766338462
B13: 7 | C13: 0.4666666667 | D13: 0.8043041561 | E13: 0.5833333333 | F13: 0.7115726362 | G13: 0.75 | H13: 0.5697828247
B14: 8 | C14: 0.5333333333 | D14: 0.7524321561 | E14: 0.6666666667 | F14: 0.6411803884 | G14: 0.875 | H14: 0.4650431881
B15: 9 | C15: 0.6 | D15: 0.6976763261 | E15: 0.75 | F15: 0.5697828247 | G15: 1 | H15: 0.3678794412
B16: 10 | C16: 0.6666666667 | D16: 0.6411803884 | E16: 0.8333333333 | F16: 0.4993517886 | G16: 1.125 | H16: 0.2820629517
B17: 11 | C17: 0.7333333333 | D17: 0.5840446884 | E17: 0.9166666667 | F17: 0.4315906205 | G17: 1.25 | H17: 0.2096113872
B18: 12 | C18: 0.8 | D18: 0.527292424 | E18: 1 | F18: 0.3678794412 | G18: 1.375 | H18: 0.1509774185
B19: 13 | C19: 0.8666666667 | D19: 0.4718419925 | E19: 1.083333333 | F19: 0.3092481929 | G19: 1.5 | H19: 0.1053992246
B20: 14 | C20: 0.9333333333 | D20: 0.418486306 | E20: 1.166666667 | F20: 0.2563757567 | G20: 1.625 | H20: 0.0713166827
B21: 15 | C21: 1 | D21: 0.3678794412 | E21: 1.25 | F21: 0.2096113872 | G21: 1.75 | H21: 0.04677062238
B22: 16 | C22: 1.066666667 | D22: 0.320530521 | E22: 1.333333333 | F22: 0.1690133154 | G22: 1.875 | H22: 0.02972921639
B23: 17 | C23: 1.133333333 | D23: 0.2768043211 | E23: 1.416666667 | F23: 0.1343987106 | G23: 2 | H23: 0.01831563889
B24: 18 | C24: 1.2 | D24: 0.2369277587 | E24: 1.5 | F24: 0.1053992246 | G24: 2.125 | H24: 0.01093676751 | J24: 1 | K24: 2 | L24: 3 | M24: 4 | N24: 5 | O24: 6 | P24: 7 | Q24: 8 | R24: 9 | S24: 10 | T24: 11 | U24: 12 | V24: 13 | W24: 14 | X24: 15 | Y24: 16 | Z24: 17 | AA24: 18 | AB24: 19 | AC24: 20 | AD24: 21 | AE24: 22 | AF24: 23
B25: 19 | C25: 1.266666667 | D25: 0.2010011912 | E25: 1.583333333 | F25: 0.08151693862 | G25: 2.25 | H25: 0.006329715427 | I25: HIGH | J25: 1 | K25: 0.9955654175 | L25: 0.9823793146 | M25: 0.9607894392 | N25: 0.9313584021 | O25: 0.8948393168 | P25: 0.852143789 | Q25: 0.8043041561 | R25: 0.7524321561 | S25: 0.6976763261 | T25: 0.6411803884 | U25: 0.5840446884 | V25: 0.527292424 | W25: 0.4718419925 | X25: 0.418486306 | Y25: 0.3678794412 | Z25: 0.320530521 | AA25: 0.2768043211 | AB25: 0.2369277587 | AC25: 0.2010011912 | AD25: 0.1690133154 | AE25: 0.1408584209 | AF25: 0.1163548028
B26: 20 | C26: 1.333333333 | D26: 0.1690133154 | E26: 1.666666667 | F26: 0.06217652402 | G26: 2.375 | H26: 0.003550648557 | I26: MED | J26: 1 | K26: 0.9930796125 | L26: 0.9726044771 | M26: 0.9394130628 | N26: 0.8948393168 | O26: 0.8406237433 | P26: 0.7788007831 | Q26: 0.7115726362 | R26: 0.6411803884 | S26: 0.5697828247 | T26: 0.4993517886 | U26: 0.4315906205 | V26: 0.3678794412 | W26: 0.3092481929 | X26: 0.2563757567 | Y26: 0.2096113872 | Z26: 0.1690133154 | AA26: 0.1343987106 | AB26: 0.1053992246 | AC26: 0.08151693862 | AD26: 0.06217652402 | AE26: 0.04677062238 | AF26: 0.03469668565
B27: 21 | C27: 1.4 | D27: 0.1408584209 | E27: 1.75 | F27: 0.04677062238 | G27: 2.5 | H27: 0.001930454136 | I27: LOW | J27: 1 | K27: 1 | L27: 0.984496437 | M27: 0.9394130628 | N27: 0.8688150563 | O27: 0.7788007831 | P27: 0.6766338462 | Q27: 0.5697828247 | R27: 0.4650431881 | S27: 0.3678794412 | T27: 0.2820629517 | U27: 0.2096113872 | V27: 0.1509774185 | W27: 0.1053992246 | X27: 0.0713166827 | Y27: 0.04677062238 | Z27: 0.02972921639 | AA27: 0.01831563889 | AB27: 0.01093676751 | AC27: 0.006329715427 | AD27: 0.003550648557 | AE27: 0.001930454136 | AF27: 0.001017277844
B28: 22 | C28: 1.466666667 | D28: 0.1163548028 | E28: 1.833333333 | F28: 0.03469668565 | G28: 2.625 | H28: 0.001017277844
B29: 23 | C29: 1.533333333 | D29: 0.09526325533 | E29: 1.916666667 | F29: 0.02538463749 | G29: 2.75 | H29: 0.0005195746822
B30: 24 | C30: 1.6 | D30: 0.07730474044 | E30: 2 | F30: 0.01831563889 | G30: 2.875 | H30: 0.0002572081188
B31: 25 | C31: 1.666666667 | D31: 0.06217652402 | E31: 2.083333333 | F31: 0.01303290745 | G31: 3 | H31: 0.0001234098041
B32: 26 | C32: 1.733333333 | D32: 0.0495662835 | E32: 2.166666667 | F32: 0.009145947038 | G32: 3.125 | H32: 5.739088874e-05
B33: 27 | C33: 1.8 | D33: 0.0391638951 | E33: 2.25 | F33: 0.006329715427 | G33: 3.25 | H33: 2.586810022e-05
B34: 28 | C34: 1.866666667 | D34: 0.03067079303 | E34: 2.333333333 | F34: 0.004320239474 | G34: 3.375 | H34: 1.130093604e-05
B35: 29 | C35: 1.933333333 | D35: 0.02380694872 | E35: 2.416666667 | F35: 0.002908034726 | G35: 3.5 | H35: 4.785117392e-06
B36: 30 | C36: 2 | D36: 0.01831563889 | E36: 2.5 | F36: 0.001930454136 | G36: 3.625 | H36: 1.963808221e-06
B37: 31 | C37: 2.066666667 | D37: 0.01396625647 | E37: 2.583333333 | F37: 0.001263826682 | G37: 3.75 | H37: 7.811489408e-07
B38: 32 | C38: 2.133333333 | D38: 0.01055546957 | E38: 2.666666667 | F38: 0.0008159878351 | G38: 3.875 | H38: 3.011597446e-07
B39: 33 | C39: 2.2 | D39: 0.007907054052 | E39: 2.75 | F39: 0.0005195746822 | G39: 4 | H39: 1.125351747e-07
B40: 34 | C40: 2.266666667 | D40: 0.005870721276 | E40: 2.833333333 | F40: 0.0003262724538 | G40: 4.125 | H40: 4.075753934e-08
B41: 35 | C41: 2.333333333 | D41: 0.004320239474 | E41: 2.916666667 | F41: 0.0002020602891 | G41: 4.25 | H41: 1.430724192e-08

Sheet 4Wreg
L1: Low = very urban | P1: alpha | S1: beta | V1: T
C2: a | D2: -0.5 | E2: a | F2: 0 | G2: a | H2: 0 | P2: =H2 -> 0 | Q2: =F2 -> 0 | R2: =D2 -> -0.5 | S2: =H3 -> 3 | T2: =F3 -> 3 | U2: =D3 -> 3 | V2: =H4 -> 8 | W2: =F4 -> 12 | X2: =D4 -> 16
C3: b | D3: 3 | E3: b | F3: 3 | G3: b | H3: 3
C4: T | D4: 16 | E4: T | F4: 12 | G4: T | H4: 8
D5: High | F5: Medium | H5: Low
B6: 0 | D6: 1 | F6: 1 | H6: 1
B7: 1 | C7: =(B7+$D$2)/$D$4 -> 0.03125 | D7: =EXP(-(C7^$D$3)) -> 0.9999694829 | E7: =(B7+$F$2)/$F$4 -> 0.08333333333 | F7: =EXP(-(E7^$F$3)) -> 0.9994214637 | G7: =(B7+$H$2)/($H$4) -> 0.125 | H7: =EXP(-(G7^$H$3)) -> 0.9980487811
B8: 2 | C8: =(B8+$D$2)/$D$4 -> 0.09375 | D8: =EXP(-(C8^$D$3)) -> 0.9991763648 | E8: 0.1666666667 | F8: 0.9953810706 | G8: =(B8+$H$2)/($H$4) -> 0.25 | H8: =EXP(-(G8^$H$3)) -> 0.984496437
B9: 3 | C9: 0.15625 | D9: 0.9961925694 | E9: 0.25 | F9: 0.984496437 | G9: 0.375 | H9: 0.9486319594
B10: 4 | C10: 0.21875 | D10: 0.9895870646 | E10: 0.3333333333 | F10: 0.9636404443 | G10: 0.5 | H10: 0.8824969026
B11: 5 | C11: 0.28125 | D11: 0.977998332 | E11: 0.4166666667 | F11: 0.930216464 | G11: 0.625 | H11: 0.7833774641
B12: 6 | C12: 0.34375 | D12: 0.9601949939 | E12: 0.5 | F12: 0.8824969026 | G12: 0.75 | H12: 0.6558160113
B13: 7 | C13: 0.40625 | D13: 0.9351511368 | E13: 0.5833333333 | F13: 0.8199635669 | G13: 0.875 | H13: 0.5117485566
B14: 8 | C14: 0.46875 | D14: 0.9021298367 | E14: 0.6666666667 | F14: 0.7435670792 | G14: 1 | H14: 0.3678794412
B15: 9 | C15: 0.53125 | D15: 0.8607657652 | E15: 0.75 | F15: 0.6558160113 | G15: 1.125 | H15: 0.2407904743
B16: 10 | C16: 0.59375 | D16: 0.8111355753 | E16: 0.8333333333 | F16: 0.5606246314 | G16: 1.25 | H16: 0.1418301591
B17: 11 | C17: 0.65625 | D17: 0.753803699 | E17: 0.9166666667 | F17: 0.4628951865 | G17: 1.375 | H17: 0.074302597
B18: 12 | C18: 0.71875 | D18: 0.6898318732 | E18: 1 | F18: 0.3678794412 | G18: 1.5 | H18: 0.03421811831
B19: 13 | C19: 0.78125 | D19: 0.6207436041 | E19: 1.083333333 | F19: 0.280435357 | G19: 1.625 | H19: 0.0136910133
B20: 14 | C20: 0.84375 | D20: 0.5484399475 | E20: 1.166666667 | F20: 0.2043414391 | G20: 1.75 | H20: 0.004703845092
B21: 15 | C21: 0.90625 | D21: 0.4750699546 | E21: 1.25 | F21: 0.1418301591 | G21: 1.875 | H21: 0.001371573202
B22: 16 | C22: 0.96875 | D22: 0.4028668495 | E22: 1.333333333 | F22: 0.0934461102 | G22: 2 | H22: 0.0003354626279
B23: 17 | C23: 1.03125 | D23: 0.3339679646 | E23: 1.416666667 | F23: 0.05824067435 | G23: 2.125 | H23: 6.802038454e-05
B24: 18 | C24: 1.09375 | D24: 0.2702409901 | E24: 1.5 | F24: 0.03421811831 | G24: 2.25 | H24: 1.130093604e-05 | J24: 1 | K24: 2 | L24: 3 | M24: 4 | N24: 5 | O24: 6 | P24: 7 | Q24: 8 | R24: 9 | S24: 10 | T24: 11 | U24: 12 | V24: 13 | W24: 14 | X24: 15 | Y24: 16 | Z24: 17 | AA24: 18 | AB24: 19 | AC24: 20 | AD24: 21 | AE24: 22 | AF24: 23
B25: 19 | C25: 1.15625 | D25: 0.2131398225 | E25: 1.583333333 | F25: 0.01888610705 | G25: 2.375 | H25: 1.520480165e-06 | I25: HIGH | J25: 1 | K25: 0.9999694829 | L25: 0.9991763648 | M25: 0.9961925694 | N25: 0.9895870646 | O25: 0.977998332 | P25: 0.9601949939 | Q25: 0.9351511368 | R25: 0.9021298367 | S25: 0.8607657652 | T25: 0.8111355753 | U25: 0.753803699 | V25: 0.6898318732 | W25: 0.6207436041 | X25: 0.5484399475 | Y25: 0.4750699546 | Z25: 0.4028668495 | AA25: 0.3339679646 | AB25: 0.2702409901 | AC25: 0.2131398225 | AD25: 0.1636095935 | AE25: 0.1220527437 | AF25: 0.08835777481
B26: 20 | C26: 1.21875 | D26: 0.1636095935 | E26: 1.666666667 | F26: 0.009758372645 | G26: 2.5 | H26: 1.637377131e-07 | I26: MED | J26: 1 | K26: 0.9994214637 | L26: 0.9953810706 | M26: 0.984496437 | N26: 0.9636404443 | O26: 0.930216464 | P26: 0.8824969026 | Q26: 0.8199635669 | R26: 0.7435670792 | S26: 0.6558160113 | T26: 0.5606246314 | U26: 0.4628951865 | V26: 0.3678794412 | W26: 0.280435357 | X26: 0.2043414391 | Y26: 0.1418301591 | Z26: 0.0934461102 | AA26: 0.05824067435 | AB26: 0.03421811831 | AC26: 0.01888610705 | AD26: 0.009758372645 | AE26: 0.004703845092 | AF26: 0.002107954913
B27: 21 | C27: 1.28125 | D27: 0.1220527437 | E27: 1.75 | F27: 0.004703845092 | G27: 2.625 | H27: 1.394854514e-08 | I27: LOW | J27: 1 | K27: 0.9980487811 | L27: 0.984496437 | M27: 0.9486319594 | N27: 0.8824969026 | O27: 0.7833774641 | P27: 0.6558160113 | Q27: 0.5117485566 | R27: 0.3678794412 | S27: 0.2407904743 | T27: 0.1418301591 | U27: 0.074302597 | V27: 0.03421811831 | W27: 0.0136910133 | X27: 0.004703845092 | Y27: 0.001371573202 | Z27: 0.0003354626279 | AA27: 6.802038454e-05 | AB27: 1.130093604e-05 | AC27: 1.520480165e-06 | AD27: 1.637377131e-07 | AE27: 1.394854514e-08 | AF27: 9.29034724e-10
B28: 22 | C28: 1.34375 | D28: 0.08835777481 | E28: 1.833333333 | F28: 0.002107954913 | G28: 2.75 | H28: 9.29034724e-10
B29: 23 | C29: 1.40625 | D29: 0.06198181108 | E29: 1.916666667 | F29: 0.0008751738873 | G29: 2.875 | H29: 4.781547065e-11
B30: 24 | C30: 1.46875 | D30: 0.04206974202 | E30: 2 | F30: 0.0003354626279 | G30: 3 | H30: 1.879528817e-12
B31: 25 | C31: 1.53125 | D31: 0.02758832649 | E31: 2.083333333 | F31: 0.0001183048997 | G31: 3.125 | H31: 5.576789079e-14
B32: 26 | C32: 1.59375 | D32: 0.01745398559 | E32: 2.166666667 | F32: 3.825270442e-05 | G32: 3.25 | H32: 1.234481933e-15
B33: 27 | C33: 1.65625 | D33: 0.01063754581 | E33: 2.25 | F33: 1.130093604e-05 | G33: 3.375 | H33: 2.014935542e-17
B34: 28 | C34: 1.71875 | D34: 0.00623633842 | E34: 2.333333333 | F34: 3.039845994e-06 | G34: 3.5 | H34: 2.396757463e-19
B35: 29 | C35: 1.78125 | D35: 0.003511746294 | E35: 2.416666667 | F35: 7.419346803e-07 | G35: 3.625 | H35: 2.053450046e-21
B36: 30 | C36: 1.84375 | D36: 0.001896643227 | E36: 2.5 | F36: 1.637377131e-07 | G36: 3.75 | H36: 1.252425585e-23
B37: 31 | C37: 1.90625 | D37: 0.0009810271721 | E37: 2.583333333 | F37: 3.256062707e-08 | G37: 3.875 | H37: 5.374499981e-26
B38: 32 | C38: 1.96875 | D38: 0.0004852584815 | E38: 2.666666667 | F38: 5.814198097e-09 | G38: 4 | H38: 1.603810891e-28
B39: 33 | C39: 2.03125 | D39: 0.0002292058861 | E39: 2.75 | F39: 9.29034724e-10 | G39: 4.125 | H39: 3.289332833e-31
B40: 34 | C40: 2.09375 | D40: 0.0001032292464 | E40: 2.833333333 | F40: 1.323765808e-10 | G40: 4.25 | H40: 4.582607512e-34
B41: 35 | C41: 2.15625 | D41: 4.426576086e-05 | E41: 2.916666667 | F41: 1.676175528e-11 | G41: 4.375 | H41: 4.286257891e-37

Sheet 4Wsuv
L1: Low = very urban | P1: alpha | S1: beta | V1: T
C2: a | D2: 0 | E2: a | F2: 0.5 | G2: a | H2: 0.5 | P2: =H2 -> 0.5 | Q2: =F2 -> 0.5 | R2: =D2 -> 0 | S2: =H3 -> 2.5 | T2: =F3 -> 2.5 | U2: =D3 -> 2.5 | V2: =H4 -> 10 | W2: =F4 -> 12 | X2: =D4 -> 15
C3: b | D3: 2.5 | E3: b | F3: 2.5 | G3: b | H3: 2.5
C4: T | D4: 15 | E4: T | F4: 12 | G4: T | H4: 10
D5: High | F5: Medium | H5: Low
B6: 0 | D6: 1 | F6: 1 | H6: 1
B7: 1 | C7: =(B7+$D$2)/$D$4 -> 0.06666666667 | D7: =EXP(-(C7^$D$3)) -> 0.9988531076 | E7: =(B7+$F$2)/$F$4 -> 0.125 | F7: =EXP(-(E7^$F$3)) -> 0.994490959 | G7: =(B7+$H$2)/($H$4) -> 0.15 | H7: =EXP(-(G7^$H$3)) -> 0.9913236462
B8: 2 | C8: =(B8+$D$2)/$D$4 -> 0.1333333333 | D8: =EXP(-(C8^$D$3)) -> 0.9935294978 | E8: 0.2083333333 | F8: 0.9803843728 | G8: =(B8+$H$2)/($H$4) -> 0.25 | H8: =EXP(-(G8^$H$3)) -> 0.9692332345
B9: 3 | C9: 0.2 | D9: 0.9822705064 | E9: 0.2916666667 | F9: 0.955096639 | G9: 0.35 | H9: 0.9300918099
B10: 4 | C10: 0.2666666667 | D10: 0.963944441 | E10: 0.375 | F10: 0.9174888298 | G10: 0.45 | H10: 0.8729813123
B11: 5 | C11: 0.3333333333 | D11: 0.9378642813 | E11: 0.4583333333 | F11: 0.8674324079 | G11: 0.55 | H11: 0.79904341
B12: 6 | C12: 0.4 | D12: 0.9037586945 | E12: 0.5416666667 | F12: 0.8057847775 | G12: 0.65 | H12: 0.7113217714
B13: 7 | C13: 0.4666666667 | D13: 0.8617668294 | E13: 0.625 | F13: 0.7343157412 | G13: 0.75 | H13: 0.61438145
B14: 8 | C14: 0.5333333333 | D14: 0.8124272953 | E14: 0.7083333333 | F14: 0.655554484 | G14: 0.85 | H14: 0.5137019287
B15: 9 | C15: 0.6 | D15: 0.7566497601 | E15: 0.7916666667 | F15: 0.5725572539 | G15: 0.95 | H15: 0.4149288623
B16: 10 | C16: 0.6666666667 | D16: 0.6956647823 | E16: 0.875 | F16: 0.4886168624 | G16: 1.05 | H16: 0.3231216756
B17: 11 | C17: 0.7333333333 | D17: 0.6309520717 | E17: 0.9583333333 | F17: 0.4069496477 | G17: 1.15 | H17: 0.242143864
B18: 12 | C18: 0.8 | D18: 0.5641509608 | E18: 1.041666667 | F18: 0.3304022709 | G18: 1.25 | H18: 0.1743085791
B19: 13 | C19: 0.8666666667 | D19: 0.4969596763 | E19: 1.125 | F19: 0.2612185071 | G19: 1.35 | H19: 0.120325628
B20: 14 | C20: 0.9333333333 | D20: 0.4310318531 | E20: 1.208333333 | F20: 0.2008956029 | G20: 1.45 | H20: 0.07952011582
B21: 15 | C21: 1 | D21: 0.3678794412 | E21: 1.291666667 | F21: 0.1501433133 | G21: 1.55 | H21: 0.05023273474
B22: 16 | C22: 1.066666667 | D22: 0.3087906203 | E22: 1.375 | F22: 0.1089404012 | G22: 1.65 | H22: 0.0302846417
B23: 17 | C23: 1.133333333 | D23: 0.2547696361 | E23: 1.458333333 | F23: 0.07666746451 | G23: 1.75 | H23: 0.01739962378
B24: 18 | C24: 1.2 | D24: 0.2065028706 | E24: 1.541666667 | F24: 0.0522849067 | G24: 1.85 | H24: 0.00951293068 | J24: 1 | K24: 2 | L24: 3 | M24: 4 | N24: 5 | O24: 6 | P24: 7 | Q24: 8 | R24: 9 | S24: 10 | T24: 11 | U24: 12 | V24: 13 | W24: 14 | X24: 15 | Y24: 16 | Z24: 17 | AA24: 18 | AB24: 19 | AC24: 20 | AD24: 21 | AE24: 22 | AF24: 23
B25: 19 | C25: 1.266666667 | D25: 0.1643523557 | E25: 1.625 | F25: 0.03452230643 | G25: 1.95 | H25: 0.004942409683 | I25: HIGH | J25: 1 | K25: 0.9988531076 | L25: 0.9935294978 | M25: 0.9822705064 | N25: 0.963944441 | O25: 0.9378642813 | P25: 0.9037586945 | Q25: 0.8617668294 | R25: 0.8124272953 | S25: 0.7566497601 | T25: 0.6956647823 | U25: 0.6309520717 | V25: 0.5641509608 | W25: 0.4969596763 | X25: 0.4310318531 | Y25: 0.3678794412 | Z25: 0.3087906203 | AA25: 0.2547696361 | AB25: 0.2065028706 | AC25: 0.1643523557 | AD25: 0.1283748272 | AE25: 0.09836174951 | AF25: 0.07389390528
B26: 20 | C26: 1.333333333 | D26: 0.1283748272 | E26: 1.708333333 | F26: 0.02204991387 | G26: 2.05 | H26: 0.002436812852 | I26: MED | J26: 1 | K26: 0.994490959 | L26: 0.9803843728 | M26: 0.955096639 | N26: 0.9174888298 | O26: 0.8674324079 | P26: 0.8057847775 | Q26: 0.7343157412 | R26: 0.655554484 | S26: 0.5725572539 | T26: 0.4886168624 | U26: 0.4069496477 | V26: 0.3304022709 | W26: 0.2612185071 | X26: 0.2008956029 | Y26: 0.1501433133 | Z26: 0.1089404012 | AA26: 0.07666746451 | AB26: 0.0522849067 | AC26: 0.03452230643 | AD26: 0.02204991387 | AE26: 0.0136123314 | AF26: 0.008115594749
B27: 21 | C27: 1.4 | D27: 0.09836174951 | E27: 1.791666667 | F27: 0.0136123314 | G27: 2.15 | H27: 0.001138645941 | I27: LOW | J27: 1 | K27: 0.9913236462 | L27: 0.9692332345 | M27: 0.9300918099 | N27: 0.8729813123 | O27: 0.79904341 | P27: 0.7113217714 | Q27: 0.61438145 | R27: 0.5137019287 | S27: 0.4149288623 | T27: 0.3231216756 | U27: 0.242143864 | V27: 0.1743085791 | W27: 0.120325628 | X27: 0.07952011582 | Y27: 0.05023273474 | Z27: 0.0302846417 | AA27: 0.01739962378 | AB27: 0.00951293068 | AC27: 0.004942409683 | AD27: 0.002436812852 | AE27: 0.001138645941 | AF27: 0.0005035890497
B28: 22 | C28: 1.466666667 | D28: 0.07389390528 | E28: 1.875 | F28: 0.008115594749 | G28: 2.25 | H28: 0.0005035890497
B29: 23 | C29: 1.533333333 | D29: 0.05440332283 | E29: 1.958333333 | F29: 0.004668983218 | G29: 2.35 | H29: 0.0002105405702
B30: 24 | C30: 1.6 | D30: 0.03923553946 | E30: 2.041666667 | F30: 0.002589989188 | G30: 2.45 | H30: 8.310558714e-05
B31: 25 | C31: 1.666666667 | D31: 0.02770629346 | E31: 2.125 | F31: 0.00138424829 | G31: 2.55 | H31: 3.093384071e-05
B32: 26 | C32: 1.733333333 | D32: 0.01914842304 | E32: 2.208333333 | F32: 0.0007122687877 | G32: 2.65 | H32: 1.084505043e-05
B33: 27 | C33: 1.8 | D33: 0.01294667671 | E33: 2.291666667 | F33: 0.0003525879906 | G33: 2.75 | H33: 3.576995025e-06
B34: 28 | C34: 1.866666667 | D34: 0.008559980024 | E34: 2.375 | F34: 0.0001677917495 | G34: 2.85 | H34: 1.108660293e-06
B35: 29 | C35: 1.933333333 | D35: 0.005532203426 | E35: 2.458333333 | F35: 7.670870256e-05 | G35: 2.95 | H35: 3.22541314e-07
B36: 30 | C36: 2 | D36: 0.003493489277 | E36: 2.541666667 | F36: 3.366560734e-05 | G36: 3.05 | H36: 8.798338782e-08
B37: 31 | C37: 2.066666667 | D37: 0.002154688559 | E37: 2.625 | F37: 1.417418127e-05 | G37: 3.15 | H37: 2.247886069e-08
B38: 32 | C38: 2.133333333 | D38: 0.001297490524 | E38: 2.708333333 | F38: 5.721185159e-06 | G38: 3.25 | H38: 5.373331802e-09
B39: 33 | C39: 2.2 | D39: 0.0007625212847 | E39: 2.791666667 | F39: 2.212391166e-06 | G39: 3.35 | H39: 1.200476104e-09
B40: 34 | C40: 2.266666667 | D40: 0.0004371836438 | E40: 2.875 | F40: 8.191086774e-07 | G40: 3.45 | H40: 2.504122558e-10
B41: 35 | C41: 2.333333333 | D41: 0.000244443524 | E41: 2.958333333 | F41: 2.901648861e-07 | G41: 3.55 | H41: 4.872010197e-11

Sheet 4Wtaxi
L1: Low = very urban | P1: alpha | S1: beta | V1: T
C2: a | D2: -0.5 | E2: a | F2: -0.5 | G2: a | H2: -0.5 | P2: =H2 -> -0.5 | Q2: =F2 -> -0.5 | R2: =D2 -> -0.5 | S2: =H3 -> 4 | T2: =F3 -> 3.5 | U2: =D3 -> 3 | V2: =H4 -> 8 | W2: =F4 -> 10 | X2: =D4 -> 12
C3: b | D3: 3 | E3: b | F3: 3.5 | G3: b | H3: 4
C4: T | D4: 12 | E4: T | F4: 10 | G4: T | H4: 8
D5: High | F5: Medium | H5: Low
B6: 0 | D6: 1 | F6: 1 | H6: 1
B7: 1 | C7: =(B7+$D$2)/$D$4 -> 0.04166666667 | D7: =EXP(-(C7^$D$3)) -> 0.9999276647 | E7: =(B7+$F$2)/$F$4 -> 0.05 | F7: =EXP(-(E7^$F$3)) -> 0.9999720495 | G7: =(B7+$H$2)/($H$4) -> 0.0625 | H7: =EXP(-(G7^$H$3)) -> 0.9999847413
B8: 2 | C8: =(B8+$D$2)/$D$4 -> 0.125 | D8: =EXP(-(C8^$D$3)) -> 0.9980487811 | E8: 0.15 | F8: 0.998693722 | G8: =(B8+$H$2)/($H$4) -> 0.1875 | H8: =EXP(-(G8^$H$3)) -> 0.9987648016
B9: 3 | C9: 0.2083333333 | D9: 0.9909985128 | E9: 0.25 | F9: 0.9922179383 | G9: 0.3125 | H9: 0.9905085874
B10: 4 | C10: 0.2916666667 | D10: 0.9754933643 | E10: 0.35 | F10: 0.9749538016 | G10: 0.4375 | H10: 0.9640266375
B11: 5 | C11: 0.375 | D11: 0.9486319594 | E11: 0.45 | F11: 0.9407023439 | G11: 0.5625 | H11: 0.9047352541
B12: 6 | C12: 0.4583333333 | D12: 0.9082080209 | E12: 0.55 | F12: 0.8839215167 | G12: 0.6875 | H12: 0.7997917236
B13: 7 | C13: 0.5416666667 | D13: 0.8530590526 | E13: 0.65 | F13: 0.8013882414 | G13: 0.8125 | H13: 0.6467430045
B14: 8 | C14: 0.625 | D14: 0.7833774641 | E14: 0.75 | F14: 0.6939506245 | G14: 0.9375 | H14: 0.4618679754
B15: 9 | C15: 0.7083333333 | D15: 0.7008955447 | E15: 0.85 | F15: 0.5676812065 | G15: 1.0625 | H15: 0.279590479
B16: 10 | C16: 0.7916666667 | D16: 0.6088605083 | E16: 0.95 | F16: 0.4335857126 | G16: 1.1875 | H16: 0.1368950576
B17: 11 | C17: 0.875 | D17: 0.5117485566 | E17: 1.05 | F17: 0.3053756448 | G17: 1.3125 | H17: 0.05142943754
B18: 12 | C18: 0.9583333333 | D18: 0.414726507 | E18: 1.15 | F18: 0.1957422105 | G18: 1.4375 | H18: 0.01398129674
B19: 13 | C19: 1.041666667 | D19: 0.322942603 | E19: 1.25 | F19: 0.1126285397 | G19: 1.5625 | H19: 0.002578713939
B20: 14 | C20: 1.125 | D20: 0.2407904743 | E20: 1.35 | F20: 0.05734340601 | G20: 1.6875 | H20: 0.0003007755904
B21: 15 | C21: 1.208333333 | D21: 0.1713151256 | E21: 1.45 | F21: 0.02545022673 | G21: 1.8125 | H21: 2.055818115e-05
B22: 16 | C22: 1.291666667 | D22: 0.1159008431 | E22: 1.55 | F22: 0.009694592855 | G22: 1.9375 | H22: 7.585841256e-07
B23: 17 | C23: 1.375 | D23: 0.074302597 | E23: 1.65 | F23: 0.003119011857 | G23: 2.0625 | H23: 1.383978552e-08
B24: 18 | C24: 1.458333333 | D24: 0.04498212178 | E24: 1.75 | F24: 0.0008335751346 | G24: 2.1875 | H24: 1.136701438e-10 | J24: 1 | K24: 2 | L24: 3 | M24: 4 | N24: 5 | O24: 6 | P24: 7 | Q24: 8 | R24: 9 | S24: 10 | T24: 11 | U24: 12 | V24: 13 | W24: 14 | X24: 15 | Y24: 16 | Z24: 17 | AA24: 18 | AB24: 19 | AC24: 20 | AD24: 21 | AE24: 22 | AF24: 23
B25: 19 | C25: 1.541666667 | D25: 0.02562633263 | E25: 1.85 | F25: 0.000181920447 | G25: 2.3125 | H25: 3.804478178e-13 | I25: HIGH | J25: 1 | K25: 0.9999276647 | L25: 0.9980487811 | M25: 0.9909985128 | N25: 0.9754933643 | O25: 0.9486319594 | P25: 0.9082080209 | Q25: 0.8530590526 | R25: 0.7833774641 | S25: 0.7008955447 | T25: 0.6088605083 | U25: 0.5117485566 | V25: 0.414726507 | W25: 0.322942603 | X25: 0.2407904743 | Y25: 0.1713151256 | Z25: 0.1159008431 | AA25: 0.074302597 | AB25: 0.04498212178 | AC25: 0.02562633263 | AD25: 0.0136910133 | AE25: 0.006835642954 | AF25: 0.00317840932
B26: 20 | C26: 1.625 | D26: 0.0136910133 | E26: 1.95 | F26: 3.185521543e-05 | G26: 2.4375 | H26: 4.669505887e-16 | I26: MED | J26: 1 | K26: 0.9999720495 | L26: 0.998693722 | M26: 0.9922179383 | N26: 0.9749538016 | O26: 0.9407023439 | P26: 0.8839215167 | Q26: 0.8013882414 | R26: 0.6939506245 | S26: 0.5676812065 | T26: 0.4335857126 | U26: 0.3053756448 | V26: 0.1957422105 | W26: 0.1126285397 | X26: 0.05734340601 | Y26: 0.02545022673 | Z26: 0.009694592855 | AA26: 0.003119011857 | AB26: 0.0008335751346 | AC26: 0.000181920447 | AD26: 3.185521543e-05 | AE26: 4.395269018e-06 | AF26: 4.690678961e-07
B27: 21 | C27: 1.708333333 | D27: 0.006835642954 | E27: 2.05 | F27: 4.395269018e-06 | G27: 2.5625 | H27: 1.880289448e-19 | I27: LOW | J27: 1 | K27: 0.9999847413 | L27: 0.9987648016 | M27: 0.9905085874 | N27: 0.9640266375 | O27: 0.9047352541 | P27: 0.7997917236 | Q27: 0.6467430045 | R27: 0.4618679754 | S27: 0.279590479 | T27: 0.1368950576 | U27: 0.05142943754 | V27: 0.01398129674 | W27: 0.002578713939 | X27: 0.0003007755904 | Y27: 2.055818115e-05 | Z27: 7.585841256e-07 | AA27: 1.383978552e-08 | AB27: 1.136701438e-10 | AC27: 3.804478178e-13 | AD27: 4.669505887e-16 | AE27: 1.880289448e-19 | AF27: 2.209340011e-23
B28: 22 | C28: 1.791666667 | D28: 0.00317840932 | E28: 2.15 | F28: 4.690678961e-07 | G28: 2.6875 | H28: 2.209340011e-23
B29: 23 | C29: 1.875 | D29: 0.001371573202 | E29: 2.25 | F29: 3.7990204e-08 | G29: 2.8125 | H29: 6.698011588e-28
B30: 24 | C30: 1.958333333 | D30: 0.0005473925733 | E30: 2.35 | F30: 2.290019168e-09 | G30: 2.9375 | H30: 4.605655466e-33
B31: 25 | C31: 2.041666667 | D31: 0.000201345342 | E31: 2.45 | F31: 1.007149738e-10 | G31: 3.0625 | H31: 6.277276327e-39
B32: 26 | C32: 2.125 | D32: 6.802038454e-05 | E32: 2.55 | F32: 3.166695497e-12 | G32: 3.1875 | H32: 1.47337275e-45
B33: 27 | C33: 2.208333333 | D33: 2.103213794e-05 | E33: 2.65 | F33: 6.9721011e-14 | G33: 3.3125 | H33: 5.143967907e-53
B34: 28 | C34: 2.291666667 | D34: 5.931528696e-06 | E34: 2.75 | F34: 1.052386878e-15 | G34: 3.4375 | H34: 2.293855457e-61
B35: 29 | C35: 2.375 | D35: 1.520480165e-06 | E35: 2.85 | F35: 1.065799976e-17 | G35: 3.5625 | H35: 1.115345148e-70
B36: 30 | C36: 2.458333333 | D36: 3.530350492e-07 | E36: 2.95 | F36: 7.084786791e-20 | G36: 3.6875 | H36: 5.018529886e-81
B37: 31 | C37: 2.541666667 | D37: 7.398946111e-08 | E37: 3.05 | F37: 3.022888133e-22 | G37: 3.8125 | H37: 1.76307835e-92
B38: 32 | C38: 2.625 | D38: 1.394854514e-08 | E38: 3.15 | F38: 8.092617835e-25 | G38: 3.9375 | H38: 4.056521186e-105
B39: 33 | C39: 2.708333333 | D39: 2.357148812e-09 | E39: 3.25 | F39: 1.328286907e-27 | G39: 4.0625 | H39: 5.097267223e-119
B40: 34 | C40: 2.791666667 | D40: 3.558247596e-10 | E40: 3.35 | F40: 1.305672601e-30 | G40: 4.1875 | H40: 2.899962336e-134
B41: 35 | C41: 2.875 | D41: 4.781547065e-11 | E41: 3.45 | F41: 7.505191066e-34 | G41: 4.3125 | H41: 6.156639229e-151

Sheet BUS
L1: Low = very urban | P1: alpha | S1: beta | V1: T
C2: a | D2: -1 | E2: a | F2: 0 | G2: a | H2: -1 | P2: =H2 -> -1 | Q2: =F2 -> 0 | R2: =D2 -> -1 | S2: =H3 -> 3.2 | T2: =F3 -> 3 | U2: =D3 -> 3 | V2: =H4 -> 8 | W2: =F4 -> 12 | X2: =D4 -> 12
C3: b | D3: 3 | E3: b | F3: 3 | G3: b | H3: 3.2
C4: T | D4: 12 | E4: T | F4: 12 | G4: T | H4: 8
D5: High | F5: Medium | H5: Low
B6: 0 | D6: 1 | F6: 1 | H6: 1
B7: 1 | C7: =(B7+$D$2)/$D$4 -> 0 | D7: =EXP(-(C7^$D$3)) -> 1 | E7: =(B7+$F$2)/$F$4 -> 0.08333333333 | F7: =EXP(-(E7^$F$3)) -> 0.9994214637 | G7: =(B7+$H$2)/($H$4) -> 0 | H7: =EXP(-(G7^$H$3)) -> 1
B8: 2 | C8: =(B8+$D$2)/$D$4 -> 0.08333333333 | D8: =EXP(-(C8^$D$3)) -> 0.9994214637 | E8: 0.1666666667 | F8: 0.9953810706 | G8: =(B8+$H$2)/($H$4) -> 0.125 | H8: =EXP(-(G8^$H$3)) -> 0.9987122479
B9: 3 | C9: 0.1666666667 | D9: 0.9953810706 | E9: 0.25 | F9: 0.984496437 | G9: 0.25 | H9: 0.9882282994
B10: 4 | C10: 0.25 | D10: 0.984496437 | E10: 0.3333333333 | F10: 0.9636404443 | G10: 0.375 | H10: 0.9575846901
B11: 5 | C11: 0.3333333333 | D11: 0.9636404443 | E11: 0.4166666667 | F11: 0.930216464 | G11: 0.5 | H11: 0.8968929015
B12: 6 | C12: 0.4166666667 | D12: 0.930216464 | E12: 0.5 | F12: 0.8824969026 | G12: 0.625 | H12: 0.800725697
B13: 7 | C13: 0.5 | D13: 0.8824969026 | E13: 0.5833333333 | F13: 0.8199635669 | G13: 0.75 | H13: 0.6714693428
B14: 8 | C14: 0.5833333333 | D14: 0.8199635669 | E14: 0.6666666667 | F14: 0.7435670792 | G14: 0.875 | H14: 0.5208633557
B15: 9 | C15: 0.6666666667 | D15: 0.7435670792 | E15: 0.75 | F15: 0.6558160113 | G15: 1 | H15: 0.3678794412
B16: 10 | C16: 0.75 | D16: 0.6558160113 | E16: 0.8333333333 | F16: 0.5606246314 | G16: 1.125 | H16: 0.2327554713
B17: 11 | C17: 0.8333333333 | D17: 0.5606246314 | E17: 0.9166666667 | F17: 0.4628951865 | G17: 1.25 | H17: 0.1297345614
B18: 12 | C18: 0.9166666667 | D18: 0.4628951865 | E18: 1 | F18: 0.3678794412 | G18: 1.375 | H18: 0.06262649462
B19: 13 | C19: 1 | D19: 0.3678794412 | E19: 1.083333333 | F19: 0.280435357 | G19: 1.5 | H19: 0.02573013958
B20: 14 | C20: 1.083333333 | D20: 0.280435357 | E20: 1.166666667 | F20: 0.2043414391 | G20: 1.625 | H20: 0.008839010836
B21: 15 | C21: 1.166666667 | D21: 0.2043414391 | E21: 1.25 | F21: 0.1418301591 | G21: 1.75 | H21: 0.002493496726
B22: 16 | C22: 1.25 | D22: 0.1418301591 | E22: 1.333333333 | F22: 0.0934461102 | G22: 1.875 | H22: 0.0005671553291
B23: 17 | C23: 1.333333333 | D23: 0.0934461102 | E23: 1.416666667 | F23: 0.05824067435 | G23: 2 | H23: 0.0001020970384
B24: 18 | C24: 1.416666667 | D24: 0.05824067435 | E24: 1.5 | F24: 0.03421811831 | G24: 2.125 | H24: 1.427458718e-05 | J24: 1 | K24: 2 | L24: 3 | M24: 4 | N24: 5 | O24: 6 | P24: 7 | Q24: 8 | R24: 9 | S24: 10 | T24: 11 | U24: 12 | V24: 13 | W24: 14 | X24: 15 | Y24: 16 | Z24: 17 | AA24: 18 | AB24: 19 | AC24: 20 | AD24: 21 | AE24: 22 | AF24: 23
B25: 19 | C25: 1.5 | D25: 0.03421811831 | E25: 1.583333333 | F25: 0.01888610705 | G25: 2.25 | H25: 1.520798372e-06 | I25: HIGH | J25: 1 | K25: 1 | L25: 0.9994214637 | M25: 0.9953810706 | N25: 0.984496437 | O25: 0.9636404443 | P25: 0.930216464 | Q25: 0.8824969026 | R25: 0.8199635669 | S25: 0.7435670792 | T25: 0.6558160113 | U25: 0.5606246314 | V25: 0.4628951865 | W25: 0.3678794412 | X25: 0.280435357 | Y25: 0.2043414391 | Z25: 0.1418301591 | AA25: 0.0934461102 | AB25: 0.05824067435 | AC25: 0.03421811831 | AD25: 0.01888610705 | AE25: 0.009758372645 | AF25: 0.004703845092
B26: 20 | C26: 1.583333333 | D26: 0.01888610705 | E26: 1.666666667 | F26: 0.009758372645 | G26: 2.375 | H26: 1.211037721e-07 | I26: MED | J26: 1 | K26: 0.9994214637 | L26: 0.9953810706 | M26: 0.984496437 | N26: 0.9636404443 | O26: 0.930216464 | P26: 0.8824969026 | Q26: 0.8199635669 | R26: 0.7435670792 | S26: 0.6558160113 | T26: 0.5606246314 | U26: 0.4628951865 | V26: 0.3678794412 | W26: 0.280435357 | X26: 0.2043414391 | Y26: 0.1418301591 | Z26: 0.0934461102 | AA26: 0.05824067435 | AB26: 0.03421811831 | AC26: 0.01888610705 | AD26: 0.009758372645 | AE26: 0.004703845092 | AF26: 0.002107954913
B27: 21 | C27: 1.666666667 | D27: 0.009758372645 | E27: 1.75 | F27: 0.004703845092 | G27: 2.5 | H27: 7.068841153e-09 | I27: LOW | J27: 1 | K27: 1 | L27: 0.9987122479 | M27: 0.9882282994 | N27: 0.9575846901 | O27: 0.8968929015 | P27: 0.800725697 | Q27: 0.6714693428 | R27: 0.5208633557 | S27: 0.3678794412 | T27: 0.2327554713 | U27: 0.1297345614 | V27: 0.06262649462 | W27: 0.02573013958 | X27: 0.008839010836 | Y27: 0.002493496726 | Z27: 0.0005671553291 | AA27: 0.0001020970384 | AB27: 1.427458718e-05 | AC27: 1.520798372e-06 | AD27: 1.211037721e-07 | AE27: 7.068841153e-09 | AF27: 2.965378468e-10
B28: 22 | C28: 1.75 | D28: 0.004703845092 | E28: 1.833333333 | F28: 0.002107954913 | G28: 2.625 | H28: 2.965378468e-10
B29: 23 | C29: 1.833333333 | D29: 0.002107954913 | E29: 1.916666667 | F29: 0.0008751738873 | G29: 2.75 | H29: 8.764035024e-12
B30: 24 | C30: 1.916666667 | D30: 0.0008751738873 | E30: 2 | F30: 0.0003354626279 | G30: 2.875 | H30: 1.788496266e-13
B31: 25 | C31: 2 | D31: 0.0003354626279 | E31: 2.083333333 | F31: 0.0001183048997 | G31: 3 | H31: 2.469562539e-15
B32: 26 | C32: 2.083333333 | D32: 0.0001183048997 | E32: 2.166666667 | F32: 3.825270442e-05 | G32: 3.125 | H32: 2.260534689e-17
B33: 27 | C33: 2.166666667 | D33: 3.825270442e-05 | E33: 2.25 | F33: 1.130093604e-05 | G33: 3.25 | H33: 1.34368713e-19
B34: 28 | C34: 2.25 | D34: 1.130093604e-05 | E34: 2.333333333 | F34: 3.039845994e-06 | G34: 3.375 | H34: 5.079788428e-22
B35: 29 | C35: 2.333333333 | D35: 3.039845994e-06 | E35: 2.416666667 | F35: 7.419346803e-07 | G35: 3.5 | H35: 1.1960475e-24
B36: 30 | C36: 2.416666667 | D36: 7.419346803e-07 | E36: 2.5 | F36: 1.637377131e-07 | G36: 3.625 | H36: 1.717250674e-27
B37: 31 | C37: 2.5 | D37: 1.637377131e-07 | E37: 2.583333333 | F37: 3.256062707e-08 | G37: 3.75 | H37: 1.471847376e-30
B38: 32 | C38: 2.583333333 | D38: 3.256062707e-08 | E38: 2.666666667 | F38: 5.814198097e-09 | G38: 3.875 | H38: 7.371112977e-34
B39: 33 | C39: 2.666666667 | D39: 5.814198097e-09 | E39: 2.75 | F39: 9.29034724e-10 | G39: 4 | H39: 2.110958588e-37
B40: 34 | C40: 2.75 | D40: 9.29034724e-10 | E40: 2.833333333 | F40: 1.323765808e-10 | G40: 4.125 | H40: 3.382807092e-41
B41: 35 | C41: 2.833333333 | D41: 1.323765808e-10 | E41: 2.916666667 | F41: 1.676175528e-11 | G41: 4.25 | H41: 2.967843742e-45

Sheet HDV
L1: Low = very urban | P1: alpha | S1: beta | V1: T
C2: a | D2: 0 | E2: a | F2: 1 | G2: a | H2: 1 | P2: =H2 -> 1 | Q2: =F2 -> 1 | R2: =D2 -> 0 | S2: =H3 -> 3.8 | T2: =F3 -> 3.8 | U2: =D3 -> 3.8 | V2: =H4 -> 12 | W2: =F4 -> 16 | X2: =D4 -> 18
C3: b | D3: 3.8 | E3: b | F3: 3.8 | G3: b | H3: 3.8
C4: T | D4: 18 | E4: T | F4: 16 | G4: T | H4: 12
D5: High | F5: Medium | H5: Low
B6: 0 | D6: 1 | F6: 1 | H6: 1
B7: 1 | C7: =(B7+$D$2)/$D$4 -> 0.05555555556 | D7: =EXP(-(C7^$D$3)) -> 0.9999830191 | E7: =(B7+$F$2)/$F$4 -> 0.125 | F7: =EXP(-(E7^$F$3)) -> 0.9996300205 | G7: =(B7+$H$2)/($H$4) -> 0.1666666667 | H7: =EXP(-(G7^$H$3)) -> 0.9988964665
B8: 2 | C8: =(B8+$D$2)/$D$4 -> 0.1111111111 | D8: =EXP(-(C8^$D$3)) -> 0.9997635022 | E8: 0.1875 | F8: 0.9982740438 | G8: =(B8+$H$2)/($H$4) -> 0.25 | H8: =EXP(-(G8^$H$3)) -> 0.994858933
B9: 3 | C9: 0.1666666667 | D9: 0.9988964665 | E9: 0.25 | F9: 0.994858933 | G9: 0.3333333333 | H9: 0.9847382646
B10: 4 | C10: 0.2222222222 | D10: 0.9967108987 | E10: 0.3125 | F10: 0.9880375694 | G10: 0.4166666667 | H10: 0.9647285607
B11: 5 | C11: 0.2777777778 | D11: 0.9923373105 | E11: 0.375 | F11: 0.9762258799 | G11: 0.5 | H11: 0.9307229333
B12: 6 | C12: 0.3333333333 | D12: 0.9847382646 | E12: 0.4375 | F12: 0.9576976366 | G12: 0.5833333333 | H12: 0.8790016097
B13: 7 | C13: 0.3888888889 | D13: 0.9727509308 | E13: 0.5 | F13: 0.9307229333 | G13: 0.6666666667 | H13: 0.807173495
B14: 8 | C14: 0.4444444444 | D14: 0.955148196 | E14: 0.5625 | F14: 0.8937562427 | G14: 0.75 | H14: 0.7152343388
B15: 9 | C15: 0.5 | D15: 0.9307229333 | E15: 0.625 | F15: 0.84566918 | G15: 0.8333333333 | H15: 0.6064320102
B16: 10 | C16: 0.5555555556 | D16: 0.8983970427 | E16: 0.6875 | F16: 0.7860076193 | G16: 0.9166666667 | H16: 0.4875017265
B17: 11 | C17: 0.6111111111 | D17: 0.8573522641 | E17: 0.75 | F17: 0.7152343388 | G17: 1 | H17: 0.3678794412
B18: 12 | C18: 0.6666666667 | D18: 0.807173495 | E18: 0.8125 | F18: 0.6349014898 | G18: 1.083333333 | H18: 0.2578211841
B19: 13 | C19: 0.7222222222 | D19: 0.7479880241 | E19: 0.875 | F19: 0.5476892122 | G19: 1.166666667 | H19: 0.1658986363
B20: 14 | C20: 0.7777777778 | D20: 0.6805771199 | E20: 0.9375 | F20: 0.457256069 | G20: 1.25 | H20: 0.0968254922
B21: 15 | C21: 0.8333333333 | D21: 0.6064320102 | E21: 1 | F21: 0.3678794412 | G21: 1.333333333 | H21: 0.05060106013
B22: 16 | C22: 0.8888888889 | D22: 0.5277271269 | E22: 1.0625 | F22: 0.2839178725 | G22: 1.416666667 | H22: 0.02335855135
B23: 17 | C23: 0.9444444444 | D23: 0.447191926 | E23: 1.125 | F23: 0.2091895555 | G23: 1.5 | H23: 0.009389424259
B24: 18 | C24: 1 | D24: 0.3678794412 | E24: 1.1875 | F24: 0.146408357 | G24: 1.583333333 | H24: 0.003237649465 | J24: 1 | K24: 2 | L24: 3 | M24: 4 | N24: 5 | O24: 6 | P24: 7 | Q24: 8 | R24: 9 | S24: 10 | T24: 11 | U24: 12 | V24: 13 | W24: 14 | X24: 15 | Y24: 16 | Z24: 17 | AA24: 18 | AB24: 19 | AC24: 20 | AD24: 21 | AE24: 22 | AF24: 23
B25: 19 | C25: 1.055555556 | D25: 0.2928530718 | E25: 1.25 | F25: 0.0968254922 | G25: 1.666666667 | H25: 0.0009427870242 | I25: HIGH | J25: 1 | K25: 0.9999830191 | L25: 0.9997635022 | M25: 0.9988964665 | N25: 0.9967108987 | O25: 0.9923373105 | P25: 0.9847382646 | Q25: 0.9727509308 | R25: 0.955148196 | S25: 0.9307229333 | T25: 0.8983970427 | U25: 0.8573522641 | V25: 0.807173495 | W25: 0.7479880241 | X25: 0.6805771199 | Y25: 0.6064320102 | Z25: 0.5277271269 | AA25: 0.447191926 | AB25: 0.3678794412 | AC25: 0.2928530718 | AD25: 0.2248376451 | AE25: 0.1658986363 | AF25: 0.1172164711
B26: 20 | C26: 1.111111111 | D26: 0.2248376451 | E26: 1.3125 | F26: 0.06017731329 | G26: 1.75 | H26: 0.0002280828461 | I26: MED | J26: 1 | K26: 0.9996300205 | L26: 0.9982740438 | M26: 0.994858933 | N26: 0.9880375694 | O26: 0.9762258799 | P26: 0.9576976366 | Q26: 0.9307229333 | R26: 0.8937562427 | S26: 0.84566918 | T26: 0.7860076193 | U26: 0.7152343388 | V26: 0.6349014898 | W26: 0.5476892122 | X26: 0.457256069 | Y26: 0.3678794412 | Z26: 0.2839178725 | AA26: 0.2091895555 | AB26: 0.146408357 | AC26: 0.0968254922 | AD26: 0.06017731329 | AE26: 0.03494775286 | AF26: 0.01885285285
B27: 21 | C27: 1.166666667 | D27: 0.1658986363 | E27: 1.375 | F27: 0.03494775286 | G27: 1.833333333 | H27: 4.506916366e-05 | I27: LOW | J27: 1 | K27: 0.9988964665 | L27: 0.994858933 | M27: 0.9847382646 | N27: 0.9647285607 | O27: 0.9307229333 | P27: 0.8790016097 | Q27: 0.807173495 | R27: 0.7152343388 | S27: 0.6064320102 | T27: 0.4875017265 | U27: 0.3678794412 | V27: 0.2578211841 | W27: 0.1658986363 | X27: 0.0968254922 | Y27: 0.05060106013 | Z27: 0.02335855135 | AA27: 0.009389424259 | AB27: 0.003237649465 | AC27: 0.0009427870242 | AD27: 0.0002280828461 | AE27: 4.506916366e-05 | AF27: 7.146606523e-06
B28: 22 | C28: 1.222222222 | D28: 0.1172164711 | E28: 1.4375 | F28: 0.01885285285 | G28: 1.916666667 | H28: 7.146606523e-06
B29: 23 | C29: 1.277777778 | D29: 0.07900644725 | E29: 1.5 | F29: 0.009389424259 | G29: 2 | H29: 8.928841348e-07
B30: 24 | C30: 1.333333333 | D30: 0.05060106013 | E30: 1.5625 | F30: 0.004289860625 | G30: 2.083333333 | H30: 8.624318843e-08
B31: 25 | C31: 1.388888889 | D31: 0.03067006243 | E31: 1.625 | F31: 0.001786217648 | G31: 2.166666667 | H31: 6.314939445e-09
B32: 26 | C32: 1.444444444 | D32: 0.01751872875 | E32: 1.6875 | F32: 0.0006732313231 | G32: 2.25 | H32: 3.435036757e-10
B33: 27 | C33: 1.5 | D33: 0.009389424259 | E33: 1.75 | F33: 0.0002280828461 | G33: 2.333333333 | H33: 1.359375965e-11
B34: 28 | C34: 1.555555556 | D34: 0.004700893923 | E34: 1.8125 | F34: 6.895844858e-05 | G34: 2.416666667 | H34: 3.830443903e-13
B35: 29 | C35: 1.611111111 | D35: 0.00218839275 | E35: 1.875 | F35: 1.846827276e-05 | G35: 2.5 | H35: 7.516997058e-15
B36: 30 | C36: 1.666666667 | D36: 0.0009427870242 | E36: 1.9375 | F36: 4.348067283e-06 | G36: 2.583333333 | H36: 1.004247706e-16
B37: 31 | C37: 1.722222222 | D37: 0.0003740485726 | E37: 2 | F37: 8.928841348e-07 | G37: 2.666666667 | H37: 8.922504514e-19
B38: 32 | C38: 1.777777778 | D38: 0.0001359858788 | E38: 2.0625 | F38: 1.58646893e-07 | G38: 2.75 | H38: 5.147128407e-21
B39: 33 | C39: 1.833333333 | D39: 4.506916366e-05 | E39: 2.125 | F39: 2.418945019e-08 | G39: 2.833333333 | H39: 1.881025226e-23
B40: 34 | C40: 1.888888889 | D40: 1.354556216e-05 | E40: 2.1875 | F40: 3.138418682e-09 | G40: 2.916666667 | H40: 4.246514308e-26
B41: 35 | C41: 1.944444444 | D41: 3.671996303e-06 | E41: 2.25 | F41: 3.435036757e-10 | G41: 3 | H41: 5.771322138e-29

Sheet LDV
L1: Low = very urban | P1: alpha | S1: beta | V1: T
C2: a | D2: 0 | E2: a | F2: 0 | G2: a | H2: -1 | P2: =H2 -> -1 | Q2: =F2 -> 0 | R2: =D2 -> 0 | S2: =H3 -> 2.5 | T2: =F3 -> 3 | U2: =D3 -> 3 | V2: =H4 -> 12 | W2: =F4 -> 16 | X2: =D4 -> 20
C3: b | D3: 3 | E3: b | F3: 3 | G3: b | H3: 2.5
C4: T | D4: 20 | E4: T | F4: 16 | G4: T | H4: 12
D5: High | F5: Medium | H5: Low
B6: 0 | D6: 1 | F6: 1 | H6: 1
B7: 1 | C7: =(B7+$D$2)/$D$4 -> 0.05 | D7: =EXP(-(C7^$D$3)) -> 0.9998750078 | E7: =(B7+$F$2)/$F$4 -> 0.0625 | F7: =EXP(-(E7^$F$3)) -> 0.9997558892 | G7: =(B7+$H$2)/($H$4) -> 0 | H7: =EXP(-(G7^$H$3)) -> 1
B8: 2 | C8: =(B8+$D$2)/$D$4 -> 0.1 | D8: =EXP(-(C8^$D$3)) -> 0.9990004998 | E8: 0.125 | F8: 0.9980487811 | G8: =(B8+$H$2)/($H$4) -> 0.08333333333 | H8: =EXP(-(G8^$H$3)) -> 0.9979973196
B9: 3 | C9: 0.15 | D9: 0.9966306889 | E9: 0.1875 | F9: 0.9934298814 | G9: 0.1666666667 | H9: 0.9887238277
B10: 4 | C10: 0.2 | D10: 0.9920319148 | E10: 0.25 | F10: 0.984496437 | G10: 0.25 | H10: 0.9692332345
B11: 5 | C11: 0.25 | D11: 0.984496437 | E11: 0.3125 | F11: 0.9699433821 | G11: 0.3333333333 | H11: 0.9378642813
B12: 6 | C12: 0.3 | D12: 0.9733612415 | E12: 0.375 | F12: 0.9486319594 | G12: 0.4166666667 | H12: 0.8939857082
B13: 7 | C13: 0.35 | D13: 0.9580311365 | E13: 0.4375 | F13: 0.9196701238 | G13: 0.5 | H13: 0.8379668856
B14: 8 | C14: 0.4 | D14: 0.9380049995 | E14: 0.5 | F14: 0.8824969026 | G14: 0.5833333333 | H14: 0.7711352913
B15: 9 | C15: 0.45 | D15: 0.9129035908 | E15: 0.5625 | F15: 0.8369604049 | G15: 0.6666666667 | H15: 0.6956647823
B16: 10 | C16: 0.5 | D16: 0.8824969026 | E16: 0.625 | F16: 0.7833774641 | G16: 0.75 | H16: 0.61438145
B17: 11 | C17: 0.55 | D17: 0.8467286514 | E17: 0.6875 | F17: 0.7225626342 | G17: 0.8333333333 | H17: 0.5304985017
B18: 12 | C18: 0.6 | D18: 0.8057353019 | E18: 0.75 | F18: 0.6558160113 | G18: 0.9166666667 | H18: 0.447309414
B19: 13 | C19: 0.65 | D19: 0.7598570162 | E19: 0.8125 | F19: 0.5848634059 | G19: 1 | H19: 0.3678794412
B20: 14 | C20: 0.7 | D20: 0.7096382116 | E20: 0.875 | F20: 0.5117485566 | G20: 1.083333333 | H20: 0.2947778747
B21: 15 | C21: 0.75 | D21: 0.6558160113 | E21: 0.9375 | F21: 0.438684585 | G21: 1.166666667 | H21: 0.2298868543
B22: 16 | C22: 0.8 | D22: 0.5992957878 | E22: 1 | F22: 0.3678794412 | G22: 1.25 | H22: 0.1743085791
B23: 17 | C23: 0.85 | D23: 0.5411141631 | E23: 1.0625 | F23: 0.3013560296 | G23: 1.333333333 | H23: 0.1283748272
B24: 18 | C24: 0.9 | D24: 0.4823911401 | E24: 1.125 | F24: 0.2407904743 | G24: 1.416666667 | H24: 0.09174505545 | J24: 1 | K24: 2 | L24: 3 | M24: 4 | N24: 5 | O24: 6 | P24: 7 | Q24: 8 | R24: 9 | S24: 10 | T24: 11 | U24: 12 | V24: 13 | W24: 14 | X24: 15 | Y24: 16 | Z24: 17 | AA24: 18 | AB24: 19 | AC24: 20 | AD24: 21 | AE24: 22 | AF24: 23
B25: 19 | C25: 0.95 | D25: 0.424274342 | E25: 1.1875 | F25: 0.1873905107 | G25: 1.5 | H25: 0.063566037 | I25: HIGH | J25: 1 | K25: 0.9998750078 | L25: 0.9990004998 | M25: 0.9966306889 | N25: 0.9920319148 | O25: 0.984496437 | P25: 0.9733612415 | Q25: 0.9580311365 | R25: 0.9380049995 | S25: 0.9129035908 | T25: 0.8824969026 | U25: 0.8467286514 | V25: 0.8057353019 | W25: 0.7598570162 | X25: 0.7096382116 | Y25: 0.6558160113 | Z25: 0.5992957878 | AA25: 0.5411141631 | AB25: 0.4823911401 | AC25: 0.424274342 | AD25: 0.3678794412 | AE25: 0.3142315954 | AF25: 0.2642129162
B26: 20 | C26: 1 | D26: 0.3678794412 | E26: 1.25 | F26: 0.1418301591 | G26: 1.583333333 | H26: 0.04265961536 | I26: MED | J26: 1 | K26: 0.9997558892 | L26: 0.9980487811 | M26: 0.9934298814 | N26: 0.984496437 | O26: 0.9699433821 | P26: 0.9486319594 | Q26: 0.9196701238 | R26: 0.8824969026 | S26: 0.8369604049 | T26: 0.7833774641 | U26: 0.7225626342 | V26: 0.6558160113 | W26: 0.5848634059 | X26: 0.5117485566 | Y26: 0.438684585 | Z26: 0.3678794412 | AA26: 0.3013560296 | AB26: 0.2407904743 | AC26: 0.1873905107 | AD26: 0.1418301591 | AE26: 0.1042476117 | AF26: 0.074302597
B27: 21 | C27: 1.05 | D27: 0.3142315954 | E27: 1.3125 | F27: 0.1042476117 | G27: 1.666666667 | H27: 0.02770629346 | I27: LOW | J27: 1 | K27: 1 | L27: 0.9979973196 | M27: 0.9887238277 | N27: 0.9692332345 | O27: 0.9378642813 | P27: 0.8939857082 | Q27: 0.8379668856 | R27: 0.7711352913 | S27: 0.6956647823 | T27: 0.61438145 | U27: 0.5304985017 | V27: 0.447309414 | W27: 0.3678794412 | X27: 0.2947778747 | Y27: 0.2298868543 | Z27: 0.1743085791 | AA27: 0.1283748272 | AB27: 0.09174505545 | AC27: 0.063566037 | AD27: 0.04265961536 | AE27: 0.02770629346 | AF27: 0.01739962378
B28: 22 | C28: 1.1 | D28: 0.2642129162 | E28: 1.375 | F28: 0.074302597 | G28: 1.75 | H28: 0.01739962378
B29: 23 | C29: 1.15 | D29: 0.2185205978 | E29: 1.4375 | F29: 0.05127976832 | G29: 1.833333333 | H29: 0.01055700184
B30: 24 | C30: 1.2 | D30: 0.1776393336 | E30: 1.5 | F30: 0.03421811831 | G30: 1.916666667 | H30: 0.00618341676
B31: 25 | C31: 1.25 | D31: 0.1418301591 | E31: 1.5625 | F31: 0.02204438704 | G31: 2 | H31: 0.003493489277
B32: 26 | C32: 1.3 | D32: 0.111136067 | E32: 1.625 | F32: 0.0136910133 | G32: 2.083333333 | H32: 0.00190237655
B33: 27 | C33: 1.35 | D33: 0.08540291887 | E33: 1.6875 | F33: 0.008185263122 | G33: 2.166666667 | H33: 0.0009977227536
B34: 28 | C34: 1.4 | D34: 0.06431258138 | E34: 1.75 | F34: 0.004703845092 | G34: 2.25 | H34: 0.0005035890497
B35: 29 | C35: 1.45 | D35: 0.0474240877 | E35: 1.8125 | F35: 0.002594540879 | G35: 2.333333333 | H35: 0.000244443524
B36: 30 | C36: 1.5 | D36: 0.03421811831 | E36: 1.875 | F36: 0.001371573202 | G36: 2.416666667 | H36: 0.000114026376
B37: 31 | C37: 1.55 | D37: 0.02414024293 | E37: 1.9375 | F37: 0.0006938926035 | G37: 2.5 | H37: 5.107999176e-05
B38: 32 | C38: 1.6 | D38: 0.01663909886 | E38: 2 | F38: 0.0003354626279 | G38: 2.583333333 | H38: 2.195909519e-05
B39: 33 | C39: 1.65 | D39: 0.01119682526 | E39: 2.0625 | F39: 0.0001547527864 | G39: 2.666666667 | H39: 9.053167897e-06
B40: 34 | C40: 1.7 | D40: 0.007350404009 | E40: 2.125 | F40: 6.802038454e-05 | G40: 2.75 | H40: 3.576995025e-06
B41: 35 | C41: 1.75 | D41: 0.004703845092 | E41: 2.1875 | F41: 2.844525211e-05 | G41: 2.833333333 | H41: 1.353571976e-06

Sheet NRDV
L1: Low = very urban | P1: alpha | S1: beta | V1: T
C2: a | D2: 1 | E2: a | F2: 1 | G2: a | H2: 1 | P2: =H2 -> 1 | Q2: =F2 -> 1 | R2: =D2 -> 1 | S2: =H3 -> 3.5 | T2: =F3 -> 3.5 | U2: =D3 -> 4 | V2: =H4 -> 16 | W2: =F4 -> 18 | X2: =D4 -> 22
C3: b | D3: 4 | E3: b | F3: 3.5 | G3: b | H3: 3.5
C4: T | D4: 22 | E4: T | F4: 18 | G4: T | H4: 16
D5: High | F5: Medium | H5: Low
B6: 0 | D6: 1 | F6: 1 | H6: 1
B7: 1 | C7: =(B7+$D$2)/$D$4 -> 0.09090909091 | D7: =EXP(-(C7^$D$3)) -> 0.999931701 | E7: =(B7+$F$2)/$F$4 -> 0.1111111111 | F7: =EXP(-(E7^$F$3)) -> 0.9995428572 | G7: =(B7+$H$2)/($H$4) -> 0.125 | H7: =EXP(-(G7^$H$3)) -> 0.9993097044
B8: 2 | C8: =(B8+$D$2)/$D$4 -> 0.1363636364 | D8: =EXP(-(C8^$D$3)) -> 0.9996542842 | E8: 0.1666666667 | F8: 0.9981117466 | G8: =(B8+$H$2)/($H$4) -> 0.1875 | H8: =EXP(-(G8^$H$3)) -> 0.997149738
B9: 3 | C9: 0.1818181818 | D9: 0.9989077754 | E9: 0.2222222222 | F9: 0.9948401943 | G9: 0.25 | H9: 0.9922179383
B10: 4 | C10: 0.2272727273 | D10: 0.9973355347 | E10: 0.2777777778 | F10: 0.9887671343 | G10: 0.3125 | H10: 0.9830848504
B11: 5 | C11: 0.2727272727 | D11: 0.9944828666 | E11: 0.3333333333 | F11: 0.9788436595 | G11: 0.375 | H11: 0.968222776
B12: 6 | C12: 0.3181818182 | D12: 0.9898028762 | E12: 0.3888888889 | F12: 0.9639878139 | G12: 0.4375 | H12: 0.9461170759
B13: 7 | C13: 0.3636363636 | D13: 0.9826668336 | E13: 0.4444444444 | F13: 0.9431521492 | G13: 0.5 | H13: 0.9154053122
B14: 8 | C14: 0.4090909091 | D14: 0.9723807623 | E14: 0.5 | F14: 0.9154053122 | G14: 0.5625 | H14: 0.8750415687
B15: 9 | C15: 0.4545454545 | D15: 0.9582099783 | E15: 0.5555555556 | F15: 0.8800253849 | G15: 0.625 | H15: 0.8244736378
B16: 10 | C16: 0.5 | D16: 0.9394130628 | E16: 0.6111111111 | F16: 0.8365988536 | G16: 0.6875 | H16: 0.7638107132
B17: 11 | C17: 0.5454545455 | D17: 0.9152861377 | E17: 0.6666666667 | F17: 0.7851151274 | G17: 0.75 | H17: 0.6939506245
B18: 12 | C18: 0.5909090909 | D18: 0.8852172617 | E18: 0.7222222222 | F18: 0.7260430885 | G18: 0.8125 | H18: 0.6166315163
B19: 13 | C19: 0.6363636364 | D19: 0.8487492102 | E19: 0.7777777778 | F19: 0.6603741894 | G19: 0.875 | H19: 0.534376553
B20: 14 | C20: 0.6818181818 | D20: 0.8056468965 | E20: 0.8333333333 | F20: 0.5896171873 | G20: 0.9375 | H20: 0.4503140796
B21: 15 | C21: 0.7272727273 | D21: 0.755963404 | E21: 0.8888888889 | F21: 0.5157336012 | G21: 1 | H21: 0.3678794412
B22: 16 | C22: 0.7727272727 | D22: 0.7000963626 | E22: 0.9444444444 | F22: 0.4410106846 | G22: 1.0625 | H22: 0.2904342541
B23: 17 | C23: 0.8181818182 | D23: 0.6388247441 | E23: 1 | F23: 0.3678794412 | G23: 1.125 | H23: 0.2208662899
B24: 18 | C24: 0.8636363636 | D24: 0.5733157148 | E24: 1.055555556 | F24: 0.2986971166 | G24: 1.1875 | H24: 0.1612482704 | J24: 1 | K24: 2 | L24: 3 | M24: 4 | N24: 5 | O24: 6 | P24: 7 | Q24: 8 | R24: 9 | S24: 10 | T24: 11 | U24: 12 | V24: 13 | W24: 14 | X24: 15 | Y24: 16 | Z24: 17 | AA24: 18 | AB24: 19 | AC24: 20 | AD24: 21 | AE24: 22 | AF24: 23
B25: 19 | C25: 0.9090909091 | D25: 0.5050926226 | E25: 1.111111111 | F25: 0.2355238384 | G25: 1.25 | H25: 0.1126285397 | I25: HIGH | J25: 1 | K25: 0.999931701 | L25: 0.9996542842 | M25: 0.9989077754 | N25: 0.9973355347 | O25: 0.9944828666 | P25: 0.9898028762 | Q25: 0.9826668336 | R25: 0.9723807623 | S25: 0.9582099783 | T25: 0.9394130628 | U25: 0.9152861377 | V25: 0.8852172617 | W25: 0.8487492102 | X25: 0.8056468965 | Y25: 0.755963404 | Z25: 0.7000963626 | AA25: 0.6388247441 | AB25: 0.5733157148 | AC25: 0.5050926226 | AD25: 0.4359589795 | AE25: 0.3678794412 | AF25: 0.302826634
B26: 20 | C26: 0.9545454545 | D26: 0.4359589795 | E26: 1.166666667 | F26: 0.1799284452 | G26: 1.3125 | H26: 0.07499864379 | I26: MED | J26: 1 | K26: 0.9995428572 | L26: 0.9981117466 | M26: 0.9948401943 | N26: 0.9887671343 | O26: 0.9788436595 | P26: 0.9639878139 | Q26: 0.9431521492 | R26: 0.9154053122 | S26: 0.8800253849 | T26: 0.8365988536 | U26: 0.7851151274 | V26: 0.7260430885 | W26: 0.6603741894 | X26: 0.5896171873 | Y26: 0.5157336012 | Z26: 0.4410106846 | AA26: 0.3678794412 | AB26: 0.2986971166 | AC26: 0.2355238384 | AD26: 0.1799284452 | AE26: 0.1328565357 | AF26: 0.09458364381
B27: 21 | C27: 1 | D27: 0.3678794412 | E27: 1.222222222 | F27: 0.1328565357 | G27: 1.375 | H27: 0.04743892449 | I27: LOW | J27: 1 | K27: 0.9993097044 | L27: 0.997149738 | M27: 0.9922179383 | N27: 0.9830848504 | O27: 0.968222776 | P27: 0.9461170759 | Q27: 0.9154053122 | R27: 0.8750415687 | S27: 0.8244736378 | T27: 0.7638107132 | U27: 0.6939506245 | V27: 0.6166315163 | W27: 0.534376553 | X27: 0.4503140796 | Y27: 0.3678794412 | Z27: 0.2904342541 | AA27: 0.2208662899 | AB27: 0.1612482704 | AC27: 0.1126285397 | AD27: 0.07499864379 | AE27: 0.04743892449 | AF27: 0.02839747038
B28: 22 | C28: 1.045454545 | D28: 0.302826634 | E28: 1.277777778 | F28: 0.09458364381 | G28: 1.4375 | H28: 0.02839747038
B29: 23 | C29: 1.090909091 | D29: 0.2426108157 | E29: 1.333333333 | F29: 0.06475994867 | G29: 1.5 | H29: 0.01602646371
B30: 24 | C30: 1.136363636 | D30: 0.1887157586 | E30: 1.388888889 | F30: 0.04253413265 | G30: 1.5625 | H30: 0.008494201013
B31: 25 | C31: 1.181818182 | D31: 0.1421667336 | E31: 1.444444444 | F31: 0.02672816064 | G31: 1.625 | H31: 0.00421126121
B32: 26 | C32: 1.227272727 | D32: 0.1034534567 | E32: 1.5 | F32: 0.01602646371 | G32: 1.6875 | H32: 0.00194513559
B33: 27 | C33: 1.272727273 | D33: 0.07252205981 | E33: 1.555555556 | F33: 0.009144450566 | G33: 1.75 | H33: 0.0008335751346
B34: 28 | C34: 1.318181818 | D34: 0.04883708832 | E34: 1.611111111 | F34: 0.004951317511 | G34: 1.8125 | H34: 0.0003300444444
B35: 29 | C35: 1.363636364 | D35: 0.03150038164 | E35: 1.666666667 | F35: 0.002536865154 | G35: 1.875 | H35: 0.0001202197058
B36: 30 | C36: 1.409090909 | D36: 0.01940241118 | E36: 1.722222222 | F36: 0.00122641157 | G36: 1.9375 | H36: 4.011113034e-05
B37: 31 | C37: 1.454545455 | D37: 0.0113765964 | E37: 1.777777778 | F37: 0.0005577827972 | G37: 2 | H37: 1.220446733e-05
B38: 32 | C38: 1.5 | D38: 0.006329715427 | E38: 1.833333333 | F38: 0.0002379529507 | G38: 2.0625 | H38: 3.371202824e-06
B39: 33 | C39: 1.545454545 | D39: 0.003330620418 | E39: 1.888888889 | F39: 9.492943387e-05 | G39: 2.125 | H39: 8.415496445e-07
B40: 34 | C40: 1.590909091 | D40: 0.001651751291 | E40: 1.944444444 | F40: 3.530702841e-05 | G40: 2.1875 | H40: 1.889686681e-07
B41: 35 | C41: 1.636363636 | D41: 0.0007693211549 | E41: 2 | F41: 1.220446733e-05 | G41: 2.25 | H41: 3.7990204e-08

Sheet summary
C1: Example Survival rates of a vehicle based on vehicle age
A3: 2Ws | C3: 1 | D3: 2 | E3: 3 | F3: 4 | G3: 5 | H3: 6 | I3: 7 | J3: 8 | K3: 9 | L3: 10 | M3: 11 | N3: 12 | O3: 13 | P3: 14 | Q3: 15 | R3: 16 | S3: 17 | T3: 18 | U3: 19 | V3: 20 | W3: 21 | X3: 22 | Y3: 23
B4: high survival | C4: ='2W'!J25 -> 1 | D4: ='2W'!K25 -> 0.9996239559 | E4: ='2W'!L25 -> 0.9972121024 | F4: ='2W'!M25 -> 0.9907060927 | G4: ='2W'!N25 -> 0.9780306 | H4: ='2W'!O25 -> 0.9572421271 | I4: ='2W'!P25 -> 0.9267006424 | J4: ='2W'!Q25 -> 0.8852616668 | K4: ='2W'!R25 -> 0.8324676935 | L4: ='2W'!S25 -> 0.768706674 | M4: ='2W'!T25 -> 0.6952998618 | N4: ='2W'!U25 -> 0.6144840089 | O4: ='2W'!V25 -> 0.5292657738 | P4: ='2W'!W25 -> 0.4431488729 | Q4: ='2W'!X25 -> 0.3597631562 | R4: ='2W'!Y25 -> 0.2824521538 | S4: ='2W'!Z25 -> 0.2138928098 | T4: ='2W'!AA25 -> 0.1558206156 | U4: ='2W'!AB25 -> 0.1089126387 | V4: ='2W'!AC25 -> 0.07284449059 | W4: ='2W'!AD25 -> 0.0464958517 | X4: ='2W'!AE25 -> 0.02824610998 | Y4: ='2W'!AF25 -> 0.01628741079
B5: med suvival | C5: ='2W'!J26 -> 1 | D5: ='2W'!K26 -> 0.9982100726 | E5: ='2W'!L26 -> 0.9895509366 | F5: ='2W'!M26 -> 0.968346099 | G5: ='2W'!N26 -> 0.9295337107 | H5: ='2W'!O26 -> 0.8696026357 | I5: ='2W'!P26 -> 0.787606425 | J5: ='2W'!Q26 -> 0.6859401783 | K5: ='2W'!R26 -> 0.5705060176 | L5: ='2W'!S26 -> 0.4499850787 | M5: ='2W'!T26 -> 0.3342180186 | N5: ='2W'!U26 -> 0.2320877027 | O5: ='2W'!V26 -> 0.1495998696 | P5: ='2W'!W26 -> 0.08885983154 | Q5: ='2W'!X26 -> 0.0482822444 | R5: ='2W'!Y26 -> 0.02382130323 | S5: ='2W'!Z26 -> 0.01059267202 | T5: ='2W'!AA26 -> 0.004213588071 | U5: ='2W'!AB26 -> 0.001488091768 | V5: ='2W'!AC26 -> 0.0004630671554 | W5: ='2W'!AD26 -> 0.0001260034212 | X5: ='2W'!AE26 -> 2.975192272e-05 | Y5: ='2W'!AF26 -> 6.049171125e-06
B6: low survival | C6: ='2W'!J27 -> 1 | D6: ='2W'!K27 -> 0.9944397573 | E6: ='2W'!L27 -> 0.9731991065 | F6: ='2W'!M27 -> 0.9258009508 | G6: ='2W'!N27 -> 0.845330762 | H6: ='2W'!O27 -> 0.7312493644 | I6: ='2W'!P27 -> 0.5913457028 | J6: ='2W'!Q27 -> 0.4410160885 | K6: ='2W'!R27 -> 0.299166 | L6: ='2W'!S27 -> 0.1820294839 | M6: ='2W'!T27 -> 0.097948468 | N6: ='2W'!U27 -> 0.04594829648 | O6: ='2W'!V27 -> 0.01852195781 | P6: ='2W'!W27 -> 0.006323027015 | Q6: ='2W'!X27 -> 0.001801390683 | R6: ='2W'!Y27 -> 0.0004219996467 | S6: ='2W'!Z27 -> 8.008839979e-05 | T6: ='2W'!AA27 -> 1.213027468e-05 | U6: ='2W'!AB27 -> 1.444327436e-06 | V6: ='2W'!AC27 -> 1.331581157e-07 | W6: ='2W'!AD27 -> 9.361679891e-09 | X6: ='2W'!AE27 -> 4.942733934e-10 | Y6: ='2W'!AF27 -> 1.92982771e-11
A8: 3Ws | C8: 1 | D8: 2 | E8: 3 | F8: 4 | G8: 5 | H8: 6 | I8: 7 | J8: 8 | K8: 9 | L8: 10 | M8: 11 | N8: 12 | O8: 13 | P8: 14 | Q8: 15 | R8: 16 | S8: 17 | T8: 18 | U8: 19 | V8: 20 | W8: 21 | X8: 22 | Y8: 23
B9: high survival | C9: ='3W'!J25 -> 1 | D9: ='3W'!K25 -> 0.9955654175 | E9: ='3W'!L25 -> 0.9823793146 | F9: ='3W'!M25 -> 0.9607894392 | G9: ='3W'!N25 -> 0.9313584021 | H9: ='3W'!O25 -> 0.8948393168 | I9: ='3W'!P25 -> 0.852143789 | J9: ='3W'!Q25 -> 0.8043041561 | K9: ='3W'!R25 -> 0.7524321561 | L9: ='3W'!S25 -> 0.6976763261 | M9: ='3W'!T25 -> 0.6411803884 | N9: ='3W'!U25 -> 0.5840446884 | O9: ='3W'!V25 -> 0.527292424 | P9: ='3W'!W25 -> 0.4718419925 | Q9: ='3W'!X25 -> 0.418486306 | R9: ='3W'!Y25 -> 0.3678794412 | S9: ='3W'!Z25 -> 0.320530521 | T9: ='3W'!AA25 -> 0.2768043211 | U9: ='3W'!AB25 -> 0.2369277587 | V9: ='3W'!AC25 -> 0.2010011912 | W9: ='3W'!AD25 -> 0.1690133154 | X9: ='3W'!AE25 -> 0.1408584209 | Y9: ='3W'!AF25 -> 0.1163548028
B10: med suvival | C10: ='3W'!J26 -> 1 | D10: ='3W'!K26 -> 0.9930796125 | E10: ='3W'!L26 -> 0.9726044771 | F10: ='3W'!M26 -> 0.9394130628 | G10: ='3W'!N26 -> 0.8948393168 | H10: ='3W'!O26 -> 0.8406237433 | I10: ='3W'!P26 -> 0.7788007831 | J10: ='3W'!Q26 -> 0.7115726362 | K10: ='3W'!R26 -> 0.6411803884 | L10: ='3W'!S26 -> 0.5697828247 | M10: ='3W'!T26 -> 0.4993517886 | N10: ='3W'!U26 -> 0.4315906205 | O10: ='3W'!V26 -> 0.3678794412 | P10: ='3W'!W26 -> 0.3092481929 | Q10: ='3W'!X26 -> 0.2563757567 | R10: ='3W'!Y26 -> 0.2096113872 | S10: ='3W'!Z26 -> 0.1690133154 | T10: ='3W'!AA26 -> 0.1343987106 | U10: ='3W'!AB26 -> 0.1053992246 | V10: ='3W'!AC26 -> 0.08151693862 | W10: ='3W'!AD26 -> 0.06217652402 | X10: ='3W'!AE26 -> 0.04677062238 | Y10: ='3W'!AF26 -> 0.03469668565
B11: low survival | C11: ='3W'!J27 -> 1 | D11: ='3W'!K27 -> 1 | E11: ='3W'!L27 -> 0.984496437 | F11: ='3W'!M27 -> 0.9394130628 | G11: ='3W'!N27 -> 0.8688150563 | H11: ='3W'!O27 -> 0.7788007831 | I11: ='3W'!P27 -> 0.6766338462 | J11: ='3W'!Q27 -> 0.5697828247 | K11: ='3W'!R27 -> 0.4650431881 | L11: ='3W'!S27 -> 0.3678794412 | M11: ='3W'!T27 -> 0.2820629517 | N11: ='3W'!U27 -> 0.2096113872 | O11: ='3W'!V27 -> 0.1509774185 | P11: ='3W'!W27 -> 0.1053992246 | Q11: ='3W'!X27 -> 0.0713166827 | R11: ='3W'!Y27 -> 0.04677062238 | S11: ='3W'!Z27 -> 0.02972921639 | T11: ='3W'!AA27 -> 0.01831563889 | U11: ='3W'!AB27 -> 0.01093676751 | V11: ='3W'!AC27 -> 0.006329715427 | W11: ='3W'!AD27 -> 0.003550648557 | X11: ='3W'!AE27 -> 0.001930454136 | Y11: ='3W'!AF27 -> 0.001017277844
A13: 4W1 | C13: 1 | D13: 2 | E13: 3 | F13: 4 | G13: 5 | H13: 6 | I13: 7 | J13: 8 | K13: 9 | L13: 10 | M13: 11 | N13: 12 | O13: 13 | P13: 14 | Q13: 15 | R13: 16 | S13: 17 | T13: 18 | U13: 19 | V13: 20 | W13: 21 | X13: 22 | Y13: 23
B14: high survival | C14: ='4Wreg'!J25 -> 1 | D14: ='4Wreg'!K25 -> 0.9999694829 | E14: ='4Wreg'!L25 -> 0.9991763648 | F14: ='4Wreg'!M25 -> 0.9961925694 | G14: ='4Wreg'!N25 -> 0.9895870646 | H14: ='4Wreg'!O25 -> 0.977998332 | I14: ='4Wreg'!P25 -> 0.9601949939 | J14: ='4Wreg'!Q25 -> 0.9351511368 | K14: ='4Wreg'!R25 -> 0.9021298367 | L14: ='4Wreg'!S25 -> 0.8607657652 | M14: ='4Wreg'!T25 -> 0.8111355753 | N14: ='4Wreg'!U25 -> 0.753803699 | O14: ='4Wreg'!V25 -> 0.6898318732 | P14: ='4Wreg'!W25 -> 0.6207436041 | Q14: ='4Wreg'!X25 -> 0.5484399475 | R14: ='4Wreg'!Y25 -> 0.4750699546 | S14: ='4Wreg'!Z25 -> 0.4028668495 | T14: ='4Wreg'!AA25 -> 0.3339679646 | U14: ='4Wreg'!AB25 -> 0.2702409901 | V14: ='4Wreg'!AC25 -> 0.2131398225 | W14: ='4Wreg'!AD25 -> 0.1636095935 | X14: ='4Wreg'!AE25 -> 0.1220527437 | Y14: ='4Wreg'!AF25 -> 0.08835777481
B15: med suvival | C15: ='4Wreg'!J26 -> 1 | D15: ='4Wreg'!K26 -> 0.9994214637 | E15: ='4Wreg'!L26 -> 0.9953810706 | F15: ='4Wreg'!M26 -> 0.984496437 | G15: ='4Wreg'!N26 -> 0.9636404443 | H15: ='4Wreg'!O26 -> 0.930216464 | I15: ='4Wreg'!P26 -> 0.8824969026 | J15: ='4Wreg'!Q26 -> 0.8199635669 | K15: ='4Wreg'!R26 -> 0.7435670792 | L15: ='4Wreg'!S26 -> 0.6558160113 | M15: ='4Wreg'!T26 -> 0.5606246314 | N15: ='4Wreg'!U26 -> 0.4628951865 | O15: ='4Wreg'!V26 -> 0.3678794412 | P15: ='4Wreg'!W26 -> 0.280435357 | Q15: ='4Wreg'!X26 -> 0.2043414391 | R15: ='4Wreg'!Y26 -> 0.1418301591 | S15: ='4Wreg'!Z26 -> 0.0934461102 | T15: ='4Wreg'!AA26 -> 0.05824067435 | U15: ='4Wreg'!AB26 -> 0.03421811831 | V15: ='4Wreg'!AC26 -> 0.01888610705 | W15: ='4Wreg'!AD26 -> 0.009758372645 | X15: ='4Wreg'!AE26 -> 0.004703845092 | Y15: ='4Wreg'!AF26 -> 0.002107954913
B16: low survival | C16: ='4Wreg'!J27 -> 1 | D16: ='4Wreg'!K27 -> 0.9980487811 | E16: ='4Wreg'!L27 -> 0.984496437 | F16: ='4Wreg'!M27 -> 0.9486319594 | G16: ='4Wreg'!N27 -> 0.8824969026 | H16: ='4Wreg'!O27 -> 0.7833774641 | I16: ='4Wreg'!P27 -> 0.6558160113 | J16: ='4Wreg'!Q27 -> 0.5117485566 | K16: ='4Wreg'!R27 -> 0.3678794412 | L16: ='4Wreg'!S27 -> 0.2407904743 | M16: ='4Wreg'!T27 -> 0.1418301591 | N16: ='4Wreg'!U27 -> 0.074302597 | O16: ='4Wreg'!V27 -> 0.03421811831 | P16: ='4Wreg'!W27 -> 0.0136910133 | Q16: ='4Wreg'!X27 -> 0.004703845092 | R16: ='4Wreg'!Y27 -> 0.001371573202 | S16: ='4Wreg'!Z27 -> 0.0003354626279 | T16: ='4Wreg'!AA27 -> 6.802038454e-05 | U16: ='4Wreg'!AB27 -> 1.130093604e-05 | V16: ='4Wreg'!AC27 -> 1.520480165e-06 | W16: ='4Wreg'!AD27 -> 1.637377131e-07 | X16: ='4Wreg'!AE27 -> 1.394854514e-08 | Y16: ='4Wreg'!AF27 -> 9.29034724e-10
A18: 4W2 | C18: 1 | D18: 2 | E18: 3 | F18: 4 | G18: 5 | H18: 6 | I18: 7 | J18: 8 | K18: 9 | L18: 10 | M18: 11 | N18: 12 | O18: 13 | P18: 14 | Q18: 15 | R18: 16 | S18: 17 | T18: 18 | U18: 19 | V18: 20 | W18: 21 | X18: 22 | Y18: 23
B19: high survival | C19: ='4Wsuv'!J25 -> 1 | D19: ='4Wsuv'!K25 -> 0.9988531076 | E19: ='4Wsuv'!L25 -> 0.9935294978 | F19: ='4Wsuv'!M25 -> 0.9822705064 | G19: ='4Wsuv'!N25 -> 0.963944441 | H19: ='4Wsuv'!O25 -> 0.9378642813 | I19: ='4Wsuv'!P25 -> 0.9037586945 | J19: ='4Wsuv'!Q25 -> 0.8617668294 | K19: ='4Wsuv'!R25 -> 0.8124272953 | L19: ='4Wsuv'!S25 -> 0.7566497601 | M19: ='4Wsuv'!T25 -> 0.6956647823 | N19: ='4Wsuv'!U25 -> 0.6309520717 | O19: ='4Wsuv'!V25 -> 0.5641509608 | P19: ='4Wsuv'!W25 -> 0.4969596763 | Q19: ='4Wsuv'!X25 -> 0.4310318531 | R19: ='4Wsuv'!Y25 -> 0.3678794412 | S19: ='4Wsuv'!Z25 -> 0.3087906203 | T19: ='4Wsuv'!AA25 -> 0.2547696361 | U19: ='4Wsuv'!AB25 -> 0.2065028706 | V19: ='4Wsuv'!AC25 -> 0.1643523557 | W19: ='4Wsuv'!AD25 -> 0.1283748272 | X19: ='4Wsuv'!AE25 -> 0.09836174951 | Y19: ='4Wsuv'!AF25 -> 0.07389390528
B20: med suvival | C20: ='4Wsuv'!J26 -> 1 | D20: ='4Wsuv'!K26 -> 0.994490959 | E20: ='4Wsuv'!L26 -> 0.9803843728 | F20: ='4Wsuv'!M26 -> 0.955096639 | G20: ='4Wsuv'!N26 -> 0.9174888298 | H20: ='4Wsuv'!O26 -> 0.8674324079 | I20: ='4Wsuv'!P26 -> 0.8057847775 | J20: ='4Wsuv'!Q26 -> 0.7343157412 | K20: ='4Wsuv'!R26 -> 0.655554484 | L20: ='4Wsuv'!S26 -> 0.5725572539 | M20: ='4Wsuv'!T26 -> 0.4886168624 | N20: ='4Wsuv'!U26 -> 0.4069496477 | O20: ='4Wsuv'!V26 -> 0.3304022709 | P20: ='4Wsuv'!W26 -> 0.2612185071 | Q20: ='4Wsuv'!X26 -> 0.2008956029 | R20: ='4Wsuv'!Y26 -> 0.1501433133 | S20: ='4Wsuv'!Z26 -> 0.1089404012 | T20: ='4Wsuv'!AA26 -> 0.07666746451 | U20: ='4Wsuv'!AB26 -> 0.0522849067 | V20: ='4Wsuv'!AC26 -> 0.03452230643 | W20: ='4Wsuv'!AD26 -> 0.02204991387 | X20: ='4Wsuv'!AE26 -> 0.0136123314 | Y20: ='4Wsuv'!AF26 -> 0.008115594749
B21: low survival | C21: ='4Wsuv'!J27 -> 1 | D21: ='4Wsuv'!K27 -> 0.9913236462 | E21: ='4Wsuv'!L27 -> 0.9692332345 | F21: ='4Wsuv'!M27 -> 0.9300918099 | G21: ='4Wsuv'!N27 -> 0.8729813123 | H21: ='4Wsuv'!O27 -> 0.79904341 | I21: ='4Wsuv'!P27 -> 0.7113217714 | J21: ='4Wsuv'!Q27 -> 0.61438145 | K21: ='4Wsuv'!R27 -> 0.5137019287 | L21: ='4Wsuv'!S27 -> 0.4149288623 | M21: ='4Wsuv'!T27 -> 0.3231216756 | N21: ='4Wsuv'!U27 -> 0.242143864 | O21: ='4Wsuv'!V27 -> 0.1743085791 | P21: ='4Wsuv'!W27 -> 0.120325628 | Q21: ='4Wsuv'!X27 -> 0.07952011582 | R21: ='4Wsuv'!Y27 -> 0.05023273474 | S21: ='4Wsuv'!Z27 -> 0.0302846417 | T21: ='4Wsuv'!AA27 -> 0.01739962378 | U21: ='4Wsuv'!AB27 -> 0.00951293068 | V21: ='4Wsuv'!AC27 -> 0.004942409683 | W21: ='4Wsuv'!AD27 -> 0.002436812852 | X21: ='4Wsuv'!AE27 -> 0.001138645941 | Y21: ='4Wsuv'!AF27 -> 0.0005035890497
A23: TAXI | C23: 1 | D23: 2 | E23: 3 | F23: 4 | G23: 5 | H23: 6 | I23: 7 | J23: 8 | K23: 9 | L23: 10 | M23: 11 | N23: 12 | O23: 13 | P23: 14 | Q23: 15 | R23: 16 | S23: 17 | T23: 18 | U23: 19 | V23: 20 | W23: 21 | X23: 22 | Y23: 23
B24: high survival | C24: ='4Wtaxi'!J25 -> 1 | D24: ='4Wtaxi'!K25 -> 0.9999276647 | E24: ='4Wtaxi'!L25 -> 0.9980487811 | F24: ='4Wtaxi'!M25 -> 0.9909985128 | G24: ='4Wtaxi'!N25 -> 0.9754933643 | H24: ='4Wtaxi'!O25 -> 0.9486319594 | I24: ='4Wtaxi'!P25 -> 0.9082080209 | J24: ='4Wtaxi'!Q25 -> 0.8530590526 | K24: ='4Wtaxi'!R25 -> 0.7833774641 | L24: ='4Wtaxi'!S25 -> 0.7008955447 | M24: ='4Wtaxi'!T25 -> 0.6088605083 | N24: ='4Wtaxi'!U25 -> 0.5117485566 | O24: ='4Wtaxi'!V25 -> 0.414726507 | P24: ='4Wtaxi'!W25 -> 0.322942603 | Q24: ='4Wtaxi'!X25 -> 0.2407904743 | R24: ='4Wtaxi'!Y25 -> 0.1713151256 | S24: ='4Wtaxi'!Z25 -> 0.1159008431 | T24: ='4Wtaxi'!AA25 -> 0.074302597 | U24: ='4Wtaxi'!AB25 -> 0.04498212178 | V24: ='4Wtaxi'!AC25 -> 0.02562633263 | W24: ='4Wtaxi'!AD25 -> 0.0136910133 | X24: ='4Wtaxi'!AE25 -> 0.006835642954 | Y24: ='4Wtaxi'!AF25 -> 0.00317840932
B25: med suvival | C25: ='4Wtaxi'!J26 -> 1 | D25: ='4Wtaxi'!K26 -> 0.9999720495 | E25: ='4Wtaxi'!L26 -> 0.998693722 | F25: ='4Wtaxi'!M26 -> 0.9922179383 | G25: ='4Wtaxi'!N26 -> 0.9749538016 | H25: ='4Wtaxi'!O26 -> 0.9407023439 | I25: ='4Wtaxi'!P26 -> 0.8839215167 | J25: ='4Wtaxi'!Q26 -> 0.8013882414 | K25: ='4Wtaxi'!R26 -> 0.6939506245 | L25: ='4Wtaxi'!S26 -> 0.5676812065 | M25: ='4Wtaxi'!T26 -> 0.4335857126 | N25: ='4Wtaxi'!U26 -> 0.3053756448 | O25: ='4Wtaxi'!V26 -> 0.1957422105 | P25: ='4Wtaxi'!W26 -> 0.1126285397 | Q25: ='4Wtaxi'!X26 -> 0.05734340601 | R25: ='4Wtaxi'!Y26 -> 0.02545022673 | S25: ='4Wtaxi'!Z26 -> 0.009694592855 | T25: ='4Wtaxi'!AA26 -> 0.003119011857 | U25: ='4Wtaxi'!AB26 -> 0.0008335751346 | V25: ='4Wtaxi'!AC26 -> 0.000181920447 | W25: ='4Wtaxi'!AD26 -> 3.185521543e-05 | X25: ='4Wtaxi'!AE26 -> 4.395269018e-06 | Y25: ='4Wtaxi'!AF26 -> 4.690678961e-07
B26: low survival | C26: ='4Wtaxi'!J27 -> 1 | D26: ='4Wtaxi'!K27 -> 0.9999847413 | E26: ='4Wtaxi'!L27 -> 0.9987648016 | F26: ='4Wtaxi'!M27 -> 0.9905085874 | G26: ='4Wtaxi'!N27 -> 0.9640266375 | H26: ='4Wtaxi'!O27 -> 0.9047352541 | I26: ='4Wtaxi'!P27 -> 0.7997917236 | J26: ='4Wtaxi'!Q27 -> 0.6467430045 | K26: ='4Wtaxi'!R27 -> 0.4618679754 | L26: ='4Wtaxi'!S27 -> 0.279590479 | M26: ='4Wtaxi'!T27 -> 0.1368950576 | N26: ='4Wtaxi'!U27 -> 0.05142943754 | O26: ='4Wtaxi'!V27 -> 0.01398129674 | P26: ='4Wtaxi'!W27 -> 0.002578713939 | Q26: ='4Wtaxi'!X27 -> 0.0003007755904 | R26: ='4Wtaxi'!Y27 -> 2.055818115e-05 | S26: ='4Wtaxi'!Z27 -> 7.585841256e-07 | T26: ='4Wtaxi'!AA27 -> 1.383978552e-08 | U26: ='4Wtaxi'!AB27 -> 1.136701438e-10 | V26: ='4Wtaxi'!AC27 -> 3.804478178e-13 | W26: ='4Wtaxi'!AD27 -> 4.669505887e-16 | X26: ='4Wtaxi'!AE27 -> 1.880289448e-19 | Y26: ='4Wtaxi'!AF27 -> 2.209340011e-23
A28: BUS | C28: 1 | D28: 2 | E28: 3 | F28: 4 | G28: 5 | H28: 6 | I28: 7 | J28: 8 | K28: 9 | L28: 10 | M28: 11 | N28: 12 | O28: 13 | P28: 14 | Q28: 15 | R28: 16 | S28: 17 | T28: 18 | U28: 19 | V28: 20 | W28: 21 | X28: 22 | Y28: 23
B29: high survival | C29: =BUS!J25 -> 1 | D29: =BUS!K25 -> 1 | E29: =BUS!L25 -> 0.9994214637 | F29: =BUS!M25 -> 0.9953810706 | G29: =BUS!N25 -> 0.984496437 | H29: =BUS!O25 -> 0.9636404443 | I29: =BUS!P25 -> 0.930216464 | J29: =BUS!Q25 -> 0.8824969026 | K29: =BUS!R25 -> 0.8199635669 | L29: =BUS!S25 -> 0.7435670792 | M29: =BUS!T25 -> 0.6558160113 | N29: =BUS!U25 -> 0.5606246314 | O29: =BUS!V25 -> 0.4628951865 | P29: =BUS!W25 -> 0.3678794412 | Q29: =BUS!X25 -> 0.280435357 | R29: =BUS!Y25 -> 0.2043414391 | S29: =BUS!Z25 -> 0.1418301591 | T29: =BUS!AA25 -> 0.0934461102 | U29: =BUS!AB25 -> 0.05824067435 | V29: =BUS!AC25 -> 0.03421811831 | W29: =BUS!AD25 -> 0.01888610705 | X29: =BUS!AE25 -> 0.009758372645 | Y29: =BUS!AF25 -> 0.004703845092
B30: med suvival | C30: =BUS!J26 -> 1 | D30: =BUS!K26 -> 0.9994214637 | E30: =BUS!L26 -> 0.9953810706 | F30: =BUS!M26 -> 0.984496437 | G30: =BUS!N26 -> 0.9636404443 | H30: =BUS!O26 -> 0.930216464 | I30: =BUS!P26 -> 0.8824969026 | J30: =BUS!Q26 -> 0.8199635669 | K30: =BUS!R26 -> 0.7435670792 | L30: =BUS!S26 -> 0.6558160113 | M30: =BUS!T26 -> 0.5606246314 | N30: =BUS!U26 -> 0.4628951865 | O30: =BUS!V26 -> 0.3678794412 | P30: =BUS!W26 -> 0.280435357 | Q30: =BUS!X26 -> 0.2043414391 | R30: =BUS!Y26 -> 0.1418301591 | S30: =BUS!Z26 -> 0.0934461102 | T30: =BUS!AA26 -> 0.05824067435 | U30: =BUS!AB26 -> 0.03421811831 | V30: =BUS!AC26 -> 0.01888610705 | W30: =BUS!AD26 -> 0.009758372645 | X30: =BUS!AE26 -> 0.004703845092 | Y30: =BUS!AF26 -> 0.002107954913
B31: low survival | C31: =BUS!J27 -> 1 | D31: =BUS!K27 -> 1 | E31: =BUS!L27 -> 0.9987122479 | F31: =BUS!M27 -> 0.9882282994 | G31: =BUS!N27 -> 0.9575846901 | H31: =BUS!O27 -> 0.8968929015 | I31: =BUS!P27 -> 0.800725697 | J31: =BUS!Q27 -> 0.6714693428 | K31: =BUS!R27 -> 0.5208633557 | L31: =BUS!S27 -> 0.3678794412 | M31: =BUS!T27 -> 0.2327554713 | N31: =BUS!U27 -> 0.1297345614 | O31: =BUS!V27 -> 0.06262649462 | P31: =BUS!W27 -> 0.02573013958 | Q31: =BUS!X27 -> 0.008839010836 | R31: =BUS!Y27 -> 0.002493496726 | S31: =BUS!Z27 -> 0.0005671553291 | T31: =BUS!AA27 -> 0.0001020970384 | U31: =BUS!AB27 -> 1.427458718e-05 | V31: =BUS!AC27 -> 1.520798372e-06 | W31: =BUS!AD27 -> 1.211037721e-07 | X31: =BUS!AE27 -> 7.068841153e-09 | Y31: =BUS!AF27 -> 2.965378468e-10
A33: HDV | C33: 1 | D33: 2 | E33: 3 | F33: 4 | G33: 5 | H33: 6 | I33: 7 | J33: 8 | K33: 9 | L33: 10 | M33: 11 | N33: 12 | O33: 13 | P33: 14 | Q33: 15 | R33: 16 | S33: 17 | T33: 18 | U33: 19 | V33: 20 | W33: 21 | X33: 22 | Y33: 23
B34: high survival | C34: =HDV!J25 -> 1 | D34: =HDV!K25 -> 0.9999830191 | E34: =HDV!L25 -> 0.9997635022 | F34: =HDV!M25 -> 0.9988964665 | G34: =HDV!N25 -> 0.9967108987 | H34: =HDV!O25 -> 0.9923373105 | I34: =HDV!P25 -> 0.9847382646 | J34: =HDV!Q25 -> 0.9727509308 | K34: =HDV!R25 -> 0.955148196 | L34: =HDV!S25 -> 0.9307229333 | M34: =HDV!T25 -> 0.8983970427 | N34: =HDV!U25 -> 0.8573522641 | O34: =HDV!V25 -> 0.807173495 | P34: =HDV!W25 -> 0.7479880241 | Q34: =HDV!X25 -> 0.6805771199 | R34: =HDV!Y25 -> 0.6064320102 | S34: =HDV!Z25 -> 0.5277271269 | T34: =HDV!AA25 -> 0.447191926 | U34: =HDV!AB25 -> 0.3678794412 | V34: =HDV!AC25 -> 0.2928530718 | W34: =HDV!AD25 -> 0.2248376451 | X34: =HDV!AE25 -> 0.1658986363 | Y34: =HDV!AF25 -> 0.1172164711
B35: med suvival | C35: =HDV!J26 -> 1 | D35: =HDV!K26 -> 0.9996300205 | E35: =HDV!L26 -> 0.9982740438 | F35: =HDV!M26 -> 0.994858933 | G35: =HDV!N26 -> 0.9880375694 | H35: =HDV!O26 -> 0.9762258799 | I35: =HDV!P26 -> 0.9576976366 | J35: =HDV!Q26 -> 0.9307229333 | K35: =HDV!R26 -> 0.8937562427 | L35: =HDV!S26 -> 0.84566918 | M35: =HDV!T26 -> 0.7860076193 | N35: =HDV!U26 -> 0.7152343388 | O35: =HDV!V26 -> 0.6349014898 | P35: =HDV!W26 -> 0.5476892122 | Q35: =HDV!X26 -> 0.457256069 | R35: =HDV!Y26 -> 0.3678794412 | S35: =HDV!Z26 -> 0.2839178725 | T35: =HDV!AA26 -> 0.2091895555 | U35: =HDV!AB26 -> 0.146408357 | V35: =HDV!AC26 -> 0.0968254922 | W35: =HDV!AD26 -> 0.06017731329 | X35: =HDV!AE26 -> 0.03494775286 | Y35: =HDV!AF26 -> 0.01885285285
B36: low survival | C36: =HDV!J27 -> 1 | D36: =HDV!K27 -> 0.9988964665 | E36: =HDV!L27 -> 0.994858933 | F36: =HDV!M27 -> 0.9847382646 | G36: =HDV!N27 -> 0.9647285607 | H36: =HDV!O27 -> 0.9307229333 | I36: =HDV!P27 -> 0.8790016097 | J36: =HDV!Q27 -> 0.807173495 | K36: =HDV!R27 -> 0.7152343388 | L36: =HDV!S27 -> 0.6064320102 | M36: =HDV!T27 -> 0.4875017265 | N36: =HDV!U27 -> 0.3678794412 | O36: =HDV!V27 -> 0.2578211841 | P36: =HDV!W27 -> 0.1658986363 | Q36: =HDV!X27 -> 0.0968254922 | R36: =HDV!Y27 -> 0.05060106013 | S36: =HDV!Z27 -> 0.02335855135 | T36: =HDV!AA27 -> 0.009389424259 | U36: =HDV!AB27 -> 0.003237649465 | V36: =HDV!AC27 -> 0.0009427870242 | W36: =HDV!AD27 -> 0.0002280828461 | X36: =HDV!AE27 -> 4.506916366e-05 | Y36: =HDV!AF27 -> 7.146606523e-06
A38: LDV | C38: 1 | D38: 2 | E38: 3 | F38: 4 | G38: 5 | H38: 6 | I38: 7 | J38: 8 | K38: 9 | L38: 10 | M38: 11 | N38: 12 | O38: 13 | P38: 14 | Q38: 15 | R38: 16 | S38: 17 | T38: 18 | U38: 19 | V38: 20 | W38: 21 | X38: 22 | Y38: 23
B39: high survival | C39: =LDV!J25 -> 1 | D39: =LDV!K25 -> 0.9998750078 | E39: =LDV!L25 -> 0.9990004998 | F39: =LDV!M25 -> 0.9966306889 | G39: =LDV!N25 -> 0.9920319148 | H39: =LDV!O25 -> 0.984496437 | I39: =LDV!P25 -> 0.9733612415 | J39: =LDV!Q25 -> 0.9580311365 | K39: =LDV!R25 -> 0.9380049995 | L39: =LDV!S25 -> 0.9129035908 | M39: =LDV!T25 -> 0.8824969026 | N39: =LDV!U25 -> 0.8467286514 | O39: =LDV!V25 -> 0.8057353019 | P39: =LDV!W25 -> 0.7598570162 | Q39: =LDV!X25 -> 0.7096382116 | R39: =LDV!Y25 -> 0.6558160113 | S39: =LDV!Z25 -> 0.5992957878 | T39: =LDV!AA25 -> 0.5411141631 | U39: =LDV!AB25 -> 0.4823911401 | V39: =LDV!AC25 -> 0.424274342 | W39: =LDV!AD25 -> 0.3678794412 | X39: =LDV!AE25 -> 0.3142315954 | Y39: =LDV!AF25 -> 0.2642129162
B40: med suvival | C40: =LDV!J26 -> 1 | D40: =LDV!K26 -> 0.9997558892 | E40: =LDV!L26 -> 0.9980487811 | F40: =LDV!M26 -> 0.9934298814 | G40: =LDV!N26 -> 0.984496437 | H40: =LDV!O26 -> 0.9699433821 | I40: =LDV!P26 -> 0.9486319594 | J40: =LDV!Q26 -> 0.9196701238 | K40: =LDV!R26 -> 0.8824969026 | L40: =LDV!S26 -> 0.8369604049 | M40: =LDV!T26 -> 0.7833774641 | N40: =LDV!U26 -> 0.7225626342 | O40: =LDV!V26 -> 0.6558160113 | P40: =LDV!W26 -> 0.5848634059 | Q40: =LDV!X26 -> 0.5117485566 | R40: =LDV!Y26 -> 0.438684585 | S40: =LDV!Z26 -> 0.3678794412 | T40: =LDV!AA26 -> 0.3013560296 | U40: =LDV!AB26 -> 0.2407904743 | V40: =LDV!AC26 -> 0.1873905107 | W40: =LDV!AD26 -> 0.1418301591 | X40: =LDV!AE26 -> 0.1042476117 | Y40: =LDV!AF26 -> 0.074302597
B41: low survival | C41: =LDV!J27 -> 1 | D41: =LDV!K27 -> 1 | E41: =LDV!L27 -> 0.9979973196 | F41: =LDV!M27 -> 0.9887238277 | G41: =LDV!N27 -> 0.9692332345 | H41: =LDV!O27 -> 0.9378642813 | I41: =LDV!P27 -> 0.8939857082 | J41: =LDV!Q27 -> 0.8379668856 | K41: =LDV!R27 -> 0.7711352913 | L41: =LDV!S27 -> 0.6956647823 | M41: =LDV!T27 -> 0.61438145 | N41: =LDV!U27 -> 0.5304985017 | O41: =LDV!V27 -> 0.447309414 | P41: =LDV!W27 -> 0.3678794412 | Q41: =LDV!X27 -> 0.2947778747 | R41: =LDV!Y27 -> 0.2298868543 | S41: =LDV!Z27 -> 0.1743085791 | T41: =LDV!AA27 -> 0.1283748272 | U41: =LDV!AB27 -> 0.09174505545 | V41: =LDV!AC27 -> 0.063566037 | W41: =LDV!AD27 -> 0.04265961536 | X41: =LDV!AE27 -> 0.02770629346 | Y41: =LDV!AF27 -> 0.01739962378
A43: NONRD | C43: 1 | D43: 2 | E43: 3 | F43: 4 | G43: 5 | H43: 6 | I43: 7 | J43: 8 | K43: 9 | L43: 10 | M43: 11 | N43: 12 | O43: 13 | P43: 14 | Q43: 15 | R43: 16 | S43: 17 | T43: 18 | U43: 19 | V43: 20 | W43: 21 | X43: 22 | Y43: 23
B44: high survival | C44: =NRDV!J25 -> 1 | D44: =NRDV!K25 -> 0.999931701 | E44: =NRDV!L25 -> 0.9996542842 | F44: =NRDV!M25 -> 0.9989077754 | G44: =NRDV!N25 -> 0.9973355347 | H44: =NRDV!O25 -> 0.9944828666 | I44: =NRDV!P25 -> 0.9898028762 | J44: =NRDV!Q25 -> 0.9826668336 | K44: =NRDV!R25 -> 0.9723807623 | L44: =NRDV!S25 -> 0.9582099783 | M44: =NRDV!T25 -> 0.9394130628 | N44: =NRDV!U25 -> 0.9152861377 | O44: =NRDV!V25 -> 0.8852172617 | P44: =NRDV!W25 -> 0.8487492102 | Q44: =NRDV!X25 -> 0.8056468965 | R44: =NRDV!Y25 -> 0.755963404 | S44: =NRDV!Z25 -> 0.7000963626 | T44: =NRDV!AA25 -> 0.6388247441 | U44: =NRDV!AB25 -> 0.5733157148 | V44: =NRDV!AC25 -> 0.5050926226 | W44: =NRDV!AD25 -> 0.4359589795 | X44: =NRDV!AE25 -> 0.3678794412 | Y44: =NRDV!AF25 -> 0.302826634
B45: med suvival | C45: =NRDV!J26 -> 1 | D45: =NRDV!K26 -> 0.9995428572 | E45: =NRDV!L26 -> 0.9981117466 | F45: =NRDV!M26 -> 0.9948401943 | G45: =NRDV!N26 -> 0.9887671343 | H45: =NRDV!O26 -> 0.9788436595 | I45: =NRDV!P26 -> 0.9639878139 | J45: =NRDV!Q26 -> 0.9431521492 | K45: =NRDV!R26 -> 0.9154053122 | L45: =NRDV!S26 -> 0.8800253849 | M45: =NRDV!T26 -> 0.8365988536 | N45: =NRDV!U26 -> 0.7851151274 | O45: =NRDV!V26 -> 0.7260430885 | P45: =NRDV!W26 -> 0.6603741894 | Q45: =NRDV!X26 -> 0.5896171873 | R45: =NRDV!Y26 -> 0.5157336012 | S45: =NRDV!Z26 -> 0.4410106846 | T45: =NRDV!AA26 -> 0.3678794412 | U45: =NRDV!AB26 -> 0.2986971166 | V45: =NRDV!AC26 -> 0.2355238384 | W45: =NRDV!AD26 -> 0.1799284452 | X45: =NRDV!AE26 -> 0.1328565357 | Y45: =NRDV!AF26 -> 0.09458364381
B46: low survival | C46: =NRDV!J27 -> 1 | D46: =NRDV!K27 -> 0.9993097044 | E46: =NRDV!L27 -> 0.997149738 | F46: =NRDV!M27 -> 0.9922179383 | G46: =NRDV!N27 -> 0.9830848504 | H46: =NRDV!O27 -> 0.968222776 | I46: =NRDV!P27 -> 0.9461170759 | J46: =NRDV!Q27 -> 0.9154053122 | K46: =NRDV!R27 -> 0.8750415687 | L46: =NRDV!S27 -> 0.8244736378 | M46: =NRDV!T27 -> 0.7638107132 | N46: =NRDV!U27 -> 0.6939506245 | O46: =NRDV!V27 -> 0.6166315163 | P46: =NRDV!W27 -> 0.534376553 | Q46: =NRDV!X27 -> 0.4503140796 | R46: =NRDV!Y27 -> 0.3678794412 | S46: =NRDV!Z27 -> 0.2904342541 | T46: =NRDV!AA27 -> 0.2208662899 | U46: =NRDV!AB27 -> 0.1612482704 | V46: =NRDV!AC27 -> 0.1126285397 | W46: =NRDV!AD27 -> 0.07499864379 | X46: =NRDV!AE27 -> 0.04743892449 | Y46: =NRDV!AF27 -> 0.02839747038

Sheet summary2
C3: 1 | D3: 3 | E3: 5 | F3: 7 | G3: 9 | H3: 11 | I3: 13 | J3: 15 | K3: 17 | L3: 19 | M3: 21 | N3: 23
A4: 2Ws | B4: high survival | C4: ='2W'!J25 -> 1 | D4: ='2W'!L25 -> 0.9972121024 | E4: ='2W'!N25 -> 0.9780306 | F4: ='2W'!P25 -> 0.9267006424 | G4: ='2W'!R25 -> 0.8324676935 | H4: ='2W'!T25 -> 0.6952998618 | I4: ='2W'!V25 -> 0.5292657738 | J4: ='2W'!X25 -> 0.3597631562 | K4: ='2W'!Z25 -> 0.2138928098 | L4: ='2W'!AB25 -> 0.1089126387 | M4: ='2W'!AD25 -> 0.0464958517 | N4: ='2W'!AF25 -> 0.01628741079
B5: med suvival | C5: ='2W'!J26 -> 1 | D5: ='2W'!L26 -> 0.9895509366 | E5: ='2W'!N26 -> 0.9295337107 | F5: ='2W'!P26 -> 0.787606425 | G5: ='2W'!R26 -> 0.5705060176 | H5: ='2W'!T26 -> 0.3342180186 | I5: ='2W'!V26 -> 0.1495998696 | J5: ='2W'!X26 -> 0.0482822444 | K5: ='2W'!Z26 -> 0.01059267202 | L5: ='2W'!AB26 -> 0.001488091768 | M5: ='2W'!AD26 -> 0.0001260034212 | N5: ='2W'!AF26 -> 6.049171125e-06
B6: low survival | C6: ='2W'!J27 -> 1 | D6: ='2W'!L27 -> 0.9731991065 | E6: ='2W'!N27 -> 0.845330762 | F6: ='2W'!P27 -> 0.5913457028 | G6: ='2W'!R27 -> 0.299166 | H6: ='2W'!T27 -> 0.097948468 | I6: ='2W'!V27 -> 0.01852195781 | J6: ='2W'!X27 -> 0.001801390683 | K6: ='2W'!Z27 -> 8.008839979e-05 | L6: ='2W'!AB27 -> 1.444327436e-06 | M6: ='2W'!AD27 -> 9.361679891e-09 | N6: ='2W'!AF27 -> 1.92982771e-11
A7: 3Ws | B7: high survival | C7: ='3W'!J25 -> 1 | D7: ='3W'!L25 -> 0.9823793146 | E7: ='3W'!N25 -> 0.9313584021 | F7: ='3W'!P25 -> 0.852143789 | G7: ='3W'!R25 -> 0.7524321561 | H7: ='3W'!T25 -> 0.6411803884 | I7: ='3W'!V25 -> 0.527292424 | J7: ='3W'!X25 -> 0.418486306 | K7: ='3W'!Z25 -> 0.320530521 | L7: ='3W'!AB25 -> 0.2369277587 | M7: ='3W'!AD25 -> 0.1690133154 | N7: ='3W'!AF25 -> 0.1163548028
B8: med suvival | C8: ='3W'!J26 -> 1 | D8: ='3W'!L26 -> 0.9726044771 | E8: ='3W'!N26 -> 0.8948393168 | F8: ='3W'!P26 -> 0.7788007831 | G8: ='3W'!R26 -> 0.6411803884 | H8: ='3W'!T26 -> 0.4993517886 | I8: ='3W'!V26 -> 0.3678794412 | J8: ='3W'!X26 -> 0.2563757567 | K8: ='3W'!Z26 -> 0.1690133154 | L8: ='3W'!AB26 -> 0.1053992246 | M8: ='3W'!AD26 -> 0.06217652402 | N8: ='3W'!AF26 -> 0.03469668565
B9: low survival | C9: ='3W'!J27 -> 1 | D9: ='3W'!L27 -> 0.984496437 | E9: ='3W'!N27 -> 0.8688150563 | F9: ='3W'!P27 -> 0.6766338462 | G9: ='3W'!R27 -> 0.4650431881 | H9: ='3W'!T27 -> 0.2820629517 | I9: ='3W'!V27 -> 0.1509774185 | J9: ='3W'!X27 -> 0.0713166827 | K9: ='3W'!Z27 -> 0.02972921639 | L9: ='3W'!AB27 -> 0.01093676751 | M9: ='3W'!AD27 -> 0.003550648557 | N9: ='3W'!AF27 -> 0.001017277844
A10: 4W1 | B10: high survival | C10: ='4Wreg'!J25 -> 1 | D10: ='4Wreg'!L25 -> 0.9991763648 | E10: ='4Wreg'!N25 -> 0.9895870646 | F10: ='4Wreg'!P25 -> 0.9601949939 | G10: ='4Wreg'!R25 -> 0.9021298367 | H10: ='4Wreg'!T25 -> 0.8111355753 | I10: ='4Wreg'!V25 -> 0.6898318732 | J10: ='4Wreg'!X25 -> 0.5484399475 | K10: ='4Wreg'!Z25 -> 0.4028668495 | L10: ='4Wreg'!AB25 -> 0.2702409901 | M10: ='4Wreg'!AD25 -> 0.1636095935 | N10: ='4Wreg'!AF25 -> 0.08835777481
B11: med suvival | C11: ='4Wreg'!J26 -> 1 | D11: ='4Wreg'!L26 -> 0.9953810706 | E11: ='4Wreg'!N26 -> 0.9636404443 | F11: ='4Wreg'!P26 -> 0.8824969026 | G11: ='4Wreg'!R26 -> 0.7435670792 | H11: ='4Wreg'!T26 -> 0.5606246314 | I11: ='4Wreg'!V26 -> 0.3678794412 | J11: ='4Wreg'!X26 -> 0.2043414391 | K11: ='4Wreg'!Z26 -> 0.0934461102 | L11: ='4Wreg'!AB26 -> 0.03421811831 | M11: ='4Wreg'!AD26 -> 0.009758372645 | N11: ='4Wreg'!AF26 -> 0.002107954913
B12: low survival | C12: ='4Wreg'!J27 -> 1 | D12: ='4Wreg'!L27 -> 0.984496437 | E12: ='4Wreg'!N27 -> 0.8824969026 | F12: ='4Wreg'!P27 -> 0.6558160113 | G12: ='4Wreg'!R27 -> 0.3678794412 | H12: ='4Wreg'!T27 -> 0.1418301591 | I12: ='4Wreg'!V27 -> 0.03421811831 | J12: ='4Wreg'!X27 -> 0.004703845092 | K12: ='4Wreg'!Z27 -> 0.0003354626279 | L12: ='4Wreg'!AB27 -> 1.130093604e-05 | M12: ='4Wreg'!AD27 -> 1.637377131e-07 | N12: ='4Wreg'!AF27 -> 9.29034724e-10
A13: 4W2 | B13: high survival | C13: ='4Wsuv'!J25 -> 1 | D13: ='4Wsuv'!L25 -> 0.9935294978 | E13: ='4Wsuv'!N25 -> 0.963944441 | F13: ='4Wsuv'!P25 -> 0.9037586945 | G13: ='4Wsuv'!R25 -> 0.8124272953 | H13: ='4Wsuv'!T25 -> 0.6956647823 | I13: ='4Wsuv'!V25 -> 0.5641509608 | J13: ='4Wsuv'!X25 -> 0.4310318531 | K13: ='4Wsuv'!Z25 -> 0.3087906203 | L13: ='4Wsuv'!AB25 -> 0.2065028706 | M13: ='4Wsuv'!AD25 -> 0.1283748272 | N13: ='4Wsuv'!AF25 -> 0.07389390528
B14: med suvival | C14: ='4Wsuv'!J26 -> 1 | D14: ='4Wsuv'!L26 -> 0.9803843728 | E14: ='4Wsuv'!N26 -> 0.9174888298 | F14: ='4Wsuv'!P26 -> 0.8057847775 | G14: ='4Wsuv'!R26 -> 0.655554484 | H14: ='4Wsuv'!T26 -> 0.4886168624 | I14: ='4Wsuv'!V26 -> 0.3304022709 | J14: ='4Wsuv'!X26 -> 0.2008956029 | K14: ='4Wsuv'!Z26 -> 0.1089404012 | L14: ='4Wsuv'!AB26 -> 0.0522849067 | M14: ='4Wsuv'!AD26 -> 0.02204991387 | N14: ='4Wsuv'!AF26 -> 0.008115594749
B15: low survival | C15: ='4Wsuv'!J27 -> 1 | D15: ='4Wsuv'!L27 -> 0.9692332345 | E15: ='4Wsuv'!N27 -> 0.8729813123 | F15: ='4Wsuv'!P27 -> 0.7113217714 | G15: ='4Wsuv'!R27 -> 0.5137019287 | H15: ='4Wsuv'!T27 -> 0.3231216756 | I15: ='4Wsuv'!V27 -> 0.1743085791 | J15: ='4Wsuv'!X27 -> 0.07952011582 | K15: ='4Wsuv'!Z27 -> 0.0302846417 | L15: ='4Wsuv'!AB27 -> 0.00951293068 | M15: ='4Wsuv'!AD27 -> 0.002436812852 | N15: ='4Wsuv'!AF27 -> 0.0005035890497
A16: TAXI | B16: high survival | C16: ='4Wtaxi'!J25 -> 1 | D16: ='4Wtaxi'!L25 -> 0.9980487811 | E16: ='4Wtaxi'!N25 -> 0.9754933643 | F16: ='4Wtaxi'!P25 -> 0.9082080209 | G16: ='4Wtaxi'!R25 -> 0.7833774641 | H16: ='4Wtaxi'!T25 -> 0.6088605083 | I16: ='4Wtaxi'!V25 -> 0.414726507 | J16: ='4Wtaxi'!X25 -> 0.2407904743 | K16: ='4Wtaxi'!Z25 -> 0.1159008431 | L16: ='4Wtaxi'!AB25 -> 0.04498212178 | M16: ='4Wtaxi'!AD25 -> 0.0136910133 | N16: ='4Wtaxi'!AF25 -> 0.00317840932
B17: med suvival | C17: ='4Wtaxi'!J26 -> 1 | D17: ='4Wtaxi'!L26 -> 0.998693722 | E17: ='4Wtaxi'!N26 -> 0.9749538016 | F17: ='4Wtaxi'!P26 -> 0.8839215167 | G17: ='4Wtaxi'!R26 -> 0.6939506245 | H17: ='4Wtaxi'!T26 -> 0.4335857126 | I17: ='4Wtaxi'!V26 -> 0.1957422105 | J17: ='4Wtaxi'!X26 -> 0.05734340601 | K17: ='4Wtaxi'!Z26 -> 0.009694592855 | L17: ='4Wtaxi'!AB26 -> 0.0008335751346 | M17: ='4Wtaxi'!AD26 -> 3.185521543e-05 | N17: ='4Wtaxi'!AF26 -> 4.690678961e-07
B18: low survival | C18: ='4Wtaxi'!J27 -> 1 | D18: ='4Wtaxi'!L27 -> 0.9987648016 | E18: ='4Wtaxi'!N27 -> 0.9640266375 | F18: ='4Wtaxi'!P27 -> 0.7997917236 | G18: ='4Wtaxi'!R27 -> 0.4618679754 | H18: ='4Wtaxi'!T27 -> 0.1368950576 | I18: ='4Wtaxi'!V27 -> 0.01398129674 | J18: ='4Wtaxi'!X27 -> 0.0003007755904 | K18: ='4Wtaxi'!Z27 -> 7.585841256e-07 | L18: ='4Wtaxi'!AB27 -> 1.136701438e-10 | M18: ='4Wtaxi'!AD27 -> 4.669505887e-16 | N18: ='4Wtaxi'!AF27 -> 2.209340011e-23
A19: BUS | B19: high survival | C19: =BUS!J25 -> 1 | D19: =BUS!L25 -> 0.9994214637 | E19: =BUS!N25 -> 0.984496437 | F19: =BUS!P25 -> 0.930216464 | G19: =BUS!R25 -> 0.8199635669 | H19: =BUS!T25 -> 0.6558160113 | I19: =BUS!V25 -> 0.4628951865 | J19: =BUS!X25 -> 0.280435357 | K19: =BUS!Z25 -> 0.1418301591 | L19: =BUS!AB25 -> 0.05824067435 | M19: =BUS!AD25 -> 0.01888610705 | N19: =BUS!AF25 -> 0.004703845092
B20: med suvival | C20: =BUS!J26 -> 1 | D20: =BUS!L26 -> 0.9953810706 | E20: =BUS!N26 -> 0.9636404443 | F20: =BUS!P26 -> 0.8824969026 | G20: =BUS!R26 -> 0.7435670792 | H20: =BUS!T26 -> 0.5606246314 | I20: =BUS!V26 -> 0.3678794412 | J20: =BUS!X26 -> 0.2043414391 | K20: =BUS!Z26 -> 0.0934461102 | L20: =BUS!AB26 -> 0.03421811831 | M20: =BUS!AD26 -> 0.009758372645 | N20: =BUS!AF26 -> 0.002107954913
B21: low survival | C21: =BUS!J27 -> 1 | D21: =BUS!L27 -> 0.9987122479 | E21: =BUS!N27 -> 0.9575846901 | F21: =BUS!P27 -> 0.800725697 | G21: =BUS!R27 -> 0.5208633557 | H21: =BUS!T27 -> 0.2327554713 | I21: =BUS!V27 -> 0.06262649462 | J21: =BUS!X27 -> 0.008839010836 | K21: =BUS!Z27 -> 0.0005671553291 | L21: =BUS!AB27 -> 1.427458718e-05 | M21: =BUS!AD27 -> 1.211037721e-07 | N21: =BUS!AF27 -> 2.965378468e-10
A22: HDV | B22: high survival | C22: =HDV!J25 -> 1 | D22: =HDV!L25 -> 0.9997635022 | E22: =HDV!N25 -> 0.9967108987 | F22: =HDV!P25 -> 0.9847382646 | G22: =HDV!R25 -> 0.955148196 | H22: =HDV!T25 -> 0.8983970427 | I22: =HDV!V25 -> 0.807173495 | J22: =HDV!X25 -> 0.6805771199 | K22: =HDV!Z25 -> 0.5277271269 | L22: =HDV!AB25 -> 0.3678794412 | M22: =HDV!AD25 -> 0.2248376451 | N22: =HDV!AF25 -> 0.1172164711
B23: med suvival | C23: =HDV!J26 -> 1 | D23: =HDV!L26 -> 0.9982740438 | E23: =HDV!N26 -> 0.9880375694 | F23: =HDV!P26 -> 0.9576976366 | G23: =HDV!R26 -> 0.8937562427 | H23: =HDV!T26 -> 0.7860076193 | I23: =HDV!V26 -> 0.6349014898 | J23: =HDV!X26 -> 0.457256069 | K23: =HDV!Z26 -> 0.2839178725 | L23: =HDV!AB26 -> 0.146408357 | M23: =HDV!AD26 -> 0.06017731329 | N23: =HDV!AF26 -> 0.01885285285
B24: low survival | C24: =HDV!J27 -> 1 | D24: =HDV!L27 -> 0.994858933 | E24: =HDV!N27 -> 0.9647285607 | F24: =HDV!P27 -> 0.8790016097 | G24: =HDV!R27 -> 0.7152343388 | H24: =HDV!T27 -> 0.4875017265 | I24: =HDV!V27 -> 0.2578211841 | J24: =HDV!X27 -> 0.0968254922 | K24: =HDV!Z27 -> 0.02335855135 | L24: =HDV!AB27 -> 0.003237649465 | M24: =HDV!AD27 -> 0.0002280828461 | N24: =HDV!AF27 -> 7.146606523e-06
A25: LDV | B25: high survival | C25: =LDV!J25 -> 1 | D25: =LDV!L25 -> 0.9990004998 | E25: =LDV!N25 -> 0.9920319148 | F25: =LDV!P25 -> 0.9733612415 | G25: =LDV!R25 -> 0.9380049995 | H25: =LDV!T25 -> 0.8824969026 | I25: =LDV!V25 -> 0.8057353019 | J25: =LDV!X25 -> 0.7096382116 | K25: =LDV!Z25 -> 0.5992957878 | L25: =LDV!AB25 -> 0.4823911401 | M25: =LDV!AD25 -> 0.3678794412 | N25: =LDV!AF25 -> 0.2642129162
B26: med suvival | C26: =LDV!J26 -> 1 | D26: =LDV!L26 -> 0.9980487811 | E26: =LDV!N26 -> 0.984496437 | F26: =LDV!P26 -> 0.9486319594 | G26: =LDV!R26 -> 0.8824969026 | H26: =LDV!T26 -> 0.7833774641 | I26: =LDV!V26 -> 0.6558160113 | J26: =LDV!X26 -> 0.5117485566 | K26: =LDV!Z26 -> 0.3678794412 | L26: =LDV!AB26 -> 0.2407904743 | M26: =LDV!AD26 -> 0.1418301591 | N26: =LDV!AF26 -> 0.074302597
B27: low survival | C27: =LDV!J27 -> 1 | D27: =LDV!L27 -> 0.9979973196 | E27: =LDV!N27 -> 0.9692332345 | F27: =LDV!P27 -> 0.8939857082 | G27: =LDV!R27 -> 0.7711352913 | H27: =LDV!T27 -> 0.61438145 | I27: =LDV!V27 -> 0.447309414 | J27: =LDV!X27 -> 0.2947778747 | K27: =LDV!Z27 -> 0.1743085791 | L27: =LDV!AB27 -> 0.09174505545 | M27: =LDV!AD27 -> 0.04265961536 | N27: =LDV!AF27 -> 0.01739962378
A28: NONRD | B28: high survival | C28: =NRDV!J25 -> 1 | D28: =NRDV!L25 -> 0.9996542842 | E28: =NRDV!N25 -> 0.9973355347 | F28: =NRDV!P25 -> 0.9898028762 | G28: =NRDV!R25 -> 0.9723807623 | H28: =NRDV!T25 -> 0.9394130628 | I28: =NRDV!V25 -> 0.8852172617 | J28: =NRDV!X25 -> 0.8056468965 | K28: =NRDV!Z25 -> 0.7000963626 | L28: =NRDV!AB25 -> 0.5733157148 | M28: =NRDV!AD25 -> 0.4359589795 | N28: =NRDV!AF25 -> 0.302826634
B29: med suvival | C29: =NRDV!J26 -> 1 | D29: =NRDV!L26 -> 0.9981117466 | E29: =NRDV!N26 -> 0.9887671343 | F29: =NRDV!P26 -> 0.9639878139 | G29: =NRDV!R26 -> 0.9154053122 | H29: =NRDV!T26 -> 0.8365988536 | I29: =NRDV!V26 -> 0.7260430885 | J29: =NRDV!X26 -> 0.5896171873 | K29: =NRDV!Z26 -> 0.4410106846 | L29: =NRDV!AB26 -> 0.2986971166 | M29: =NRDV!AD26 -> 0.1799284452 | N29: =NRDV!AF26 -> 0.09458364381
B30: low survival | C30: =NRDV!J27 -> 1 | D30: =NRDV!L27 -> 0.997149738 | E30: =NRDV!N27 -> 0.9830848504 | F30: =NRDV!P27 -> 0.9461170759 | G30: =NRDV!R27 -> 0.8750415687 | H30: =NRDV!T27 -> 0.7638107132 | I30: =NRDV!V27 -> 0.6166315163 | J30: =NRDV!X27 -> 0.4503140796 | K30: =NRDV!Z27 -> 0.2904342541 | L30: =NRDV!AB27 -> 0.1612482704 | M30: =NRDV!AD27 -> 0.07499864379 | N30: =NRDV!AF27 -> 0.02839747038

Sheet method

Sheet parameters
E2: alpha | H2: beta | K2: T
E3: Low | F3: Medium | G3: High | H3: Low | I3: Medium | J3: High | K3: Low | L3: Medium | M3: High
D4: 2W | E4: ='2W'!P2 -> 0.5 | F4: ='2W'!Q2 -> 0.3 | G4: ='2W'!R2 -> 0.1 | H4: ='2W'!S2 -> 3.1 | I4: ='2W'!T2 -> 3.1 | J4: ='2W'!U2 -> 3.1 | K4: ='2W'!V2 -> 8 | L4: ='2W'!W2 -> 10 | M4: ='2W'!X2 -> 14
D5: 3W | E5: ='3W'!P2 -> -1 | F5: ='3W'!Q2 -> 0 | G5: ='3W'!R2 -> 0 | H5: ='3W'!S2 -> 2 | I5: ='3W'!T2 -> 2 | J5: ='3W'!U2 -> 2 | K5: ='3W'!V2 -> 8 | L5: ='3W'!W2 -> 12 | M5: ='3W'!X2 -> 15
D6: 4W1 | E6: ='4Wreg'!P2 -> 0 | F6: ='4Wreg'!Q2 -> 0 | G6: ='4Wreg'!R2 -> -0.5 | H6: ='4Wreg'!S2 -> 3 | I6: ='4Wreg'!T2 -> 3 | J6: ='4Wreg'!U2 -> 3 | K6: ='4Wreg'!V2 -> 8 | L6: ='4Wreg'!W2 -> 12 | M6: ='4Wreg'!X2 -> 16
D7: 4W2 | E7: ='4Wsuv'!P2 -> 0.5 | F7: ='4Wsuv'!Q2 -> 0.5 | G7: ='4Wsuv'!R2 -> 0 | H7: ='4Wsuv'!S2 -> 2.5 | I7: ='4Wsuv'!T2 -> 2.5 | J7: ='4Wsuv'!U2 -> 2.5 | K7: ='4Wsuv'!V2 -> 10 | L7: ='4Wsuv'!W2 -> 12 | M7: ='4Wsuv'!X2 -> 15
D8: 4WT | E8: ='4Wtaxi'!P2 -> -0.5 | F8: ='4Wtaxi'!Q2 -> -0.5 | G8: ='4Wtaxi'!R2 -> -0.5 | H8: ='4Wtaxi'!S2 -> 4 | I8: ='4Wtaxi'!T2 -> 3.5 | J8: ='4Wtaxi'!U2 -> 3 | K8: ='4Wtaxi'!V2 -> 8 | L8: ='4Wtaxi'!W2 -> 10 | M8: ='4Wtaxi'!X2 -> 12
D9: BUS | E9: =BUS!P2 -> -1 | F9: =BUS!Q2 -> 0 | G9: =BUS!R2 -> -1 | H9: =BUS!S2 -> 3.2 | I9: =BUS!T2 -> 3 | J9: =BUS!U2 -> 3 | K9: =BUS!V2 -> 8 | L9: =BUS!W2 -> 12 | M9: =BUS!X2 -> 12
D10: LDV | E10: =LDV!P2 -> -1 | F10: =LDV!Q2 -> 0 | G10: =LDV!R2 -> 0 | H10: =LDV!S2 -> 2.5 | I10: =LDV!T2 -> 3 | J10: =LDV!U2 -> 3 | K10: =LDV!V2 -> 12 | L10: =LDV!W2 -> 16 | M10: =LDV!X2 -> 20
D11: HDV | E11: =HDV!P2 -> 1 | F11: =HDV!Q2 -> 1 | G11: =HDV!R2 -> 0 | H11: =HDV!S2 -> 3.8 | I11: =HDV!T2 -> 3.8 | J11: =HDV!U2 -> 3.8 | K11: =HDV!V2 -> 12 | L11: =HDV!W2 -> 16 | M11: =HDV!X2 -> 18
D12: NNRD | E12: =NRDV!P2 -> 1 | F12: =NRDV!Q2 -> 1 | G12: =NRDV!R2 -> 1 | H12: =NRDV!S2 -> 3.5 | I12: =NRDV!T2 -> 3.5 | J12: =NRDV!U2 -> 4 | K12: =NRDV!V2 -> 16 | L12: =NRDV!W2 -> 18 | M12: =NRDV!X2 -> 22
